Cogmind - Beta 16 @@@ ROGUE MODE // 2025.10.25 @ 21:24:46 Player: TapeIsSticky Result: Destroyed by Executioner with Helical Railgun Performance ------------- Evolutions (8) 4000 Regions Visited (32) 6400 Robots Destroyed (255) 1275 Value Destroyed (9377) 9377 Prototype IDs (120) 2400 Alien Tech Used (3) 600 Bonus (20040) 20040 TOTAL SCORE: 44092 Bonus ------- High Alert Combat Kills 1666 Follower Combat Kills 502 Registered with UFD 300 Met Optimus in HQ 500 Met Data Miner 300 Met Zhirov 300 Scanned by Researcher 500 Destroyed Superfortress 15000 Met Optimus at Protoforge 1000 Friendly Fire -28 Cogmind --------- Core Integrity 0/1450 Matter 300/300 Energy 98/100 System Corruption 18% Temperature Cool (0) Movement Core (50) Location -2/Protoforge Parts ------- > --- POWER (2) -------- (None) > --- PROPULSION (8) --- (None) > --- UTILITY (11) ----- (None) > --- WEAPON (2) ------- (None) > --- INVENTORY (5) ---- Experimental Heavy Siege Treads Experimental Surge Thruster Perforator Peak State ------------ > --- POWER ------------ Concept Zero-point Core > --- PROPULSION ------- Impulse Thruster Array Impulse Thruster Array Impulse Thruster Array Experimental Surge Thruster Experimental Surge Thruster > --- UTILITY ---------- Concept Antigrav Storage Unit Experimental Optical Array Advanced Melee Analysis Suite Advanced Melee Analysis Suite Concept Melee Reflex Suite Concept Projectile Intercept Suite Experimental Core Analyzer Experimental Armor Integrity Analyzer Femtoactuators Concept Core Shell Centrium Light Armor Plating > --- WEAPON ----------- Concept Deflector Sword Concept Deflector Sword > --- INVENTORY -------- Concept Zero-point Core Experimental Heavy Siege Treads Experimental Biomechanical Wings Experimental Biomechanical Wings Experimental Surge Thruster Experimental Surge Thruster Experimental Surge Thruster Concept Chromion Battery Concept NT7 Matterbank Femtoactuators Concept Plasma Driver Perforator UFD Drillbomb [Rating: 237] Favorites ----------- Power Improved Ion Engine Engine Improved Ion Engine Power Core Micro Fission Core Reactor Micro Antimatter Reactor Propulsion Light Treads Treads Light Treads Leg Carbon-fiber Leg Hover Unit Cooled Gravmag System Flight Unit Improved Flight Unit Utility Hacking Suite Device Structural Scanner Storage Huge Storage Unit Processor Improved Targeting Computer Hackware Hacking Suite Protection Hardened Light Armor Plating Weapon Enhanced Autogun Energy Gun Overtuned Quantum Rifle Energy Cannon Heavy Phase Cannon Ballistic Gun Enhanced Autogun Ballistic Cannon Improved Light Cannon Launcher Grenade Launcher Special Weapon Remote Datajack Impact Weapon Heavy Hammer Slashing Weapon Katana Special Melee Weapon Advanced Datajack Build | -11 -10 -10 -9 -9 -9 -8 -8 -8 -8 -8 -6 -6 -6 -6 -6 -6 -5 -5 -5 -5 -5 -4 -4 -4 -4 -4 -4 -3 -3 -2 -2 -2 ------- Run | Yrd Mat Min Mat Min Exi Min Mat Sto Rec Scr Fac Was Fac Low Low Dat Pro Fac Upp Upp Zhi Pro Fac Was Fac Arm Lab Res Qua Res Tes Frg Slots Evolved 16 | . . . 2 . . . 2 . . . 4 . . . . . . 2 . . . . 2 . . . . 2 . 2 . . Power 1 | . . . . . . . . . . . . . . . . . . . . . . . . . . . . 1 . . . . Propulsion 6 | . . . 1 . . . 1 . . . 1 . . . . . . . . . . . 1 . . . . . . 2 . . Utility 9 | . . . 1 . . . 1 . . . 3 . . . . . . 2 . . . . 1 . . . . 1 . . . . Weapon . | . . . . . . . . . . . . . . . . . . . . . . . . . . . . . . . . . Parts Attached 235 | 7 10 8 18 8 . 3 7 17 1 . 14 . 7 2 . . 1 19 . . 8 . 12 . 2 3 . 7 3 4 6 68 Power 32 | 1 1 1 1 . . 1 1 2 . . 1 . 1 2 . . . 2 . . 2 . 2 . . . . 3 . . . 11 Engine 11 | 1 1 1 1 . . . 1 2 . . 1 . 1 1 . . . 1 . . . . . . . . . . . . . . Core 10 | . . . . . . 1 . . . . . . . 1 . . . 1 . . 1 . 1 . . . . 1 . . . 4 Reactor 11 | . . . . . . . . . . . . . . . . . . . . . 1 . 1 . . . . 2 . . . 7 Propulsion 63 | 2 1 1 5 3 . 1 2 5 . . 5 . 2 . . . . 4 . . 3 . 2 . . 2 . 1 1 2 . 21 Treads 15 | 2 1 1 4 3 . 1 2 1 . . . . . . . . . . . . . . . . . . . . . . . . Leg 4 | . . . . . . . . 4 . . . . . . . . . . . . . . . . . . . . . . . . Wheel . | . . . . . . . . . . . . . . . . . . . . . . . . . . . . . . . . . Hover 10 | . . . . . . . . . . . . . . . . . . . . . . . . . . 1 . . . . . 9 Flight 34 | . . . 1 . . . . . . . 5 . 2 . . . . 4 . . 3 . 2 . . 1 . 1 1 2 . 12 Utility 91 | 2 5 1 8 2 . 1 2 2 1 . 6 . 3 . . . 1 10 . . 3 . 7 . 2 . . 3 1 2 4 25 Device 26 | 1 1 . 1 2 . 1 2 1 . . 1 . . . . . . 3 . . . . 4 . 2 . . 1 . . 1 5 Storage 10 | 1 2 . . . . . . . . . 1 . . . . . . . . . 2 . . . . . . 1 . 1 . 2 Processor 17 | . . . 1 . . . . . . . 1 . 1 . . . . 1 . . . . 2 . . . . 1 . . 1 9 Hackware 16 | . . . . . . . . . . . 3 . 2 . . . 1 6 . . . . 1 . . . . . . 1 2 . Protection 22 | . 2 1 6 . . . . 1 1 . . . . . . . . . . . 1 . . . . . . . 1 . . 9 Artifact . | . . . . . . . . . . . . . . . . . . . . . . . . . . . . . . . . . Weapon 49 | 2 3 5 4 3 . . 2 8 . . 2 . 1 . . . . 3 . . . . 1 . . 1 . . 1 . 2 11 Energy Gun 1 | . . . . . . . . . . . . . . . . . . . . . . . . . . . . . . . . 1 Energy Cannon 7 | . . . . . . . . 2 . . . . . . . . . 1 . . . . . . . 1 . . . . 1 2 Ballistic Gun 19 | 2 3 2 4 . . . 2 5 . . . . . . . . . . . . . . . . . . . . . . . 1 Ballistic Cannon 10 | . . 2 . 3 . . . . . . . . . . . . . . . . . . . . . . . . 1 . 1 3 Launcher 4 | . . 1 . . . . . . . . 1 . . . . . . 1 . . . . . . . . . . . . . 1 Special Weapon 1 | . . . . . . . . . . . . . 1 . . . . . . . . . . . . . . . . . . . Impact Weapon 1 | . . . . . . . . 1 . . . . . . . . . . . . . . . . . . . . . . . . Slashing Weapon 5 | . . . . . . . . . . . 1 . . . . . . 1 . . . . . . . . . . . . . 3 Piercing Weapon . | . . . . . . . . . . . . . . . . . . . . . . . . . . . . . . . . . Special Melee Weapon 1 | . . . . . . . . . . . . . . . . . . . . . . . 1 . . . . . . . . . Unidentified Prototypes 35 | . . . 2 1 . . . 3 . . 1 . . . . . . 2 . . 5 . 2 . . 2 . 1 . . 4 12 Parts Lost 97 | . 4 3 2 5 . 4 2 9 2 . . . . . . . 4 1 . 1 . . 1 . . . . 3 . 8 1 47 Power 14 | . 1 1 1 . . . 1 2 . . . . . . . . 1 . . . . . . . . . . . . . . 7 Propulsion 35 | . 1 1 . 3 . 2 . 3 1 . . . . . . . 1 1 . . . . . . . . . 1 . 2 1 18 Utility 35 | . 2 . 1 1 . 1 1 2 1 . . . . . . . 1 . . 1 . . 1 . . . . 1 . 5 . 17 Weapon 12 | . . 1 . 1 . 1 . 2 . . . . . . . . 1 . . . . . . . . . . 1 . 1 . 4 Highest Loss Streak 19 | . 3 2 1 4 . 2 1 7 2 . . . . . . . 2 1 . 1 . . 1 . . . . 3 . 4 1 19 To Critical Strikes 3 | . . . . . . . . . . . . . . . . . . . . . . . . . . . . . . . . 3 Average Backups 16 | 3 15 18 19 18 17 17 19 24 25 25 11 10 10 10 10 10 9 9 9 9 8 9 8 8 9 9 10 8 9 10 12 16 Power . | . . . . . . . 1 1 1 1 . . . . . . . 1 1 1 1 1 1 1 1 1 1 . 1 1 1 2 Propulsion 5 | . 6 7 7 5 5 4 4 5 7 7 2 2 2 2 2 2 2 1 1 1 1 2 1 1 1 3 8 8 7 7 7 3 Utility 6 | . 3 3 2 3 4 5 7 10 12 12 7 7 6 7 7 7 6 5 5 5 3 3 4 4 5 3 1 . . . . 6 Weapon 4 | . 5 6 8 8 8 7 7 6 5 4 1 1 1 1 . 1 1 1 2 2 2 2 1 1 1 . . . . . 1 3 Tool/Special . | . . . . . . . . . . . . . . . . . . . . . . . . . . . . . . . . . Unused Backups 75 | . 12 . 11 . . . 2 10 1 2 4 . 2 . . . . 3 . . 4 . 3 . . 4 . 1 1 . . 15 Power 2 | . . . . . . . . . . . . . . . . . . . . . . . . . . . . . . . . 2 Propulsion 23 | . 1 . 6 . . . . 3 . . . . . . . . . 1 . . . . 1 . . 2 . 1 1 . . 7 Utility 27 | . 3 . 1 . . . 2 2 . . 2 . 2 . . . . 2 . . 4 . 2 . . 2 . . . . . 5 Weapon 22 | . 8 . 4 . . . . 5 1 2 2 . . . . . . . . . . . . . . . . . . . . . Tool/Special 1 | . . . . . . . . . . . . . . . . . . . . . . . . . . . . . . . . 1 Average Slot Usage (%) 91 | . 99 99 99 97 100 97 89 92 88 81 90 93 99 94 99 93 91 90 88 87 86 88 93 94 94 93 94 91 91 79 69 80 Engine 6 | . 14 13 11 11 11 2 6 8 9 9 6 6 6 . 6 6 5 . . . . . . . . . . . . . . . Core 1 | . . . . . . 8 2 . . . . . . 1 . . . 4 5 5 5 5 4 5 5 5 5 3 . . 3 1 Treads 11 | . 27 28 32 33 33 33 27 5 . . . . . . . . . . . . . . . . . . . . . . . . Leg 6 | . . . . . . . . 29 31 27 . . . . . . . . . . . . . . . . . . . . . . Hover 2 | . . . . . . . . . . . . . . . . . . . . . . . . . . . . . . . . 18 Flight 8 | . . . . . . . . . . . 30 33 33 33 33 33 32 24 23 23 23 23 26 26 26 25 26 22 23 21 18 8 Device 7 | . 12 . 2 5 11 9 16 11 4 . 12 13 13 13 12 6 5 8 11 11 11 11 10 15 15 15 15 18 19 14 10 6 Storage 8 | . 14 14 11 11 11 11 9 9 9 9 6 6 6 6 6 6 6 5 5 5 5 5 5 5 5 5 5 4 4 4 4 4 Processor 8 | . . . 2 11 11 11 9 9 9 9 6 6 6 6 6 6 6 5 5 5 5 5 7 10 10 10 10 9 9 8 9 21 Hackware 6 | . . . . . . . . . . . 18 20 20 20 20 20 20 31 29 28 23 23 25 21 21 21 21 19 19 13 12 2 Protection 5 | . 1 14 17 3 . . . . 8 9 . . . . . . . . . . 3 5 2 . . . . . . . . 5 Ballistic Gun 10 | . 28 23 17 6 . . 16 17 17 18 1 . . . . . . . . . . . . . . . . . . . . . Ballistic Cannon 2 | . . 4 4 14 22 21 1 . . . . . . . . . . . . . . . . . . . . . 1 4 . 1 Slashing Weapon 1 | . . . . . . . . . . . 5 6 6 6 6 6 6 6 5 5 5 5 5 5 5 5 5 2 . . . 1 Peak Build Rating 237 | 7 12 14 22 27 21 21 26 40 39 31 52 46 61 61 60 51 51 79 70 70 83 81 112 112 112 116 113 129 137 136 143 237 Average Rating 59 | 6 9 12 19 20 21 20 23 34 34 30 45 46 55 56 59 51 50 68 70 69 77 81 103 112 112 112 113 126 131 130 126 185 On Entrance 61 | . 7 12 14 22 21 21 19 24 35 31 31 46 46 61 60 51 51 40 70 70 64 81 81 112 112 112 113 113 128 136 116 143 Avg Prop Armor Cover (%) 3 | . . . . . . . . 5 . . . . 2 5 . . . 6 . . . . 2 . . 13 . . . 3 . 23 Naked Turns . | . . . . . . . . . . . . . . . . . . . . . . . . . . . . . . . . . Heaviest Build 123 | 15 90 58 67 60 56 55 55 102 104 98 27 21 29 27 24 20 20 24 19 19 23 20 41 41 41 41 41 49 52 52 60 123 Greatest Support 122 | 40 43 46 66 66 66 63 82 82 58 43 25 25 27 27 27 27 27 30 28 28 31 40 53 41 53 51 42 67 68 78 61 122 Greatest Overweight (x) 28 | . 2 1 1 . . 1 1 28 2 2 1 . 1 . . . . 1 . . . . . . . 13 . . . 1 . 2 Average Overweight (x) . | . 1 1 . . . . . 1 1 2 . . . . . . . . . . . . . . . . . . . . . . Largest Inventory Capacity 25 | 8 25 20 20 20 20 20 20 25 25 25 25 10 10 10 10 10 10 10 10 10 10 10 10 10 10 10 10 10 10 15 15 25 Average Capacity 18 | 7 22 20 20 20 20 20 20 24 25 25 10 10 10 10 10 10 10 10 10 10 10 10 10 10 10 10 10 10 10 10 15 20 Most Carried 25 | 4 24 20 20 20 18 18 20 25 25 25 25 10 10 10 10 10 10 10 10 10 10 10 10 10 10 10 10 10 10 10 14 25 Average Carried 17 | 3 15 19 19 18 17 17 19 24 24 24 10 10 9 9 10 10 9 9 10 10 9 10 9 9 10 9 10 9 9 10 12 18 Final Capacity 25 | 8 20 20 20 20 20 20 20 25 25 25 10 10 10 10 10 10 10 10 10 10 10 10 10 10 10 10 10 10 10 15 15 5 Final Carried 25 | 4 18 20 20 17 18 17 20 25 25 25 10 10 10 10 10 10 10 10 10 10 10 10 9 10 10 10 10 10 10 10 14 5 Class Distribution -------------------- 37% | Mutant 25% | Scavenger-Mutant 16% | Hacker-Scout 5% | Wizard-Scout 5% | Hacker-Sprinter Dominant Class ---------------- Mutant | -10/Materials Mutant | -10/Mines Mutant | -9/Materials Mutant | -9/Mines Mutant | -9/Exiles Mutant | -8/Mines Mutant | -8/Materials Scavenger-Mutant | -8/Storage Scavenger-Mutant | -8/Recycling Scavenger-Mutant | -8/Scraptown Hacker-Scout | -6/Factory Hacker-Scout | -6/Waste Hacker-Scout | -6/Factory Hacker-Scout | -6/Lower Caves Hacker-Scout | -6/Lower Caves Hacker-Sprinter | -6/Data Miner Hacker-Sprinter | -5/Proximity Caves Wizard-Scout | -5/Factory Wizard-Scout | -5/Upper Caves Wizard-Scout | -5/Upper Caves Hacker-Scout | -5/Zhirov Hacker-Scout | -4/Proximity Caves Wizard-Scout | -4/Factory Hacker-Scout | -4/Waste Hacker-Scout | -4/Factory Hacker-Scout | -4/Armory Hacker-Scout | -4/Lab Hacker-Scout | -3/Research Hacker-Scout | -3/Quarantine Hacker-Scout | -2/Research Hacker-Scout | -2/Testing Scavenger-Skirmisher | -2/Protoforge Resources | -11 -10 -10 -9 -9 -9 -8 -8 -8 -8 -8 -6 -6 -6 -6 -6 -6 -5 -5 -5 -5 -5 -4 -4 -4 -4 -4 -4 -3 -3 -2 -2 -2 ----------- Run | Yrd Mat Min Mat Min Exi Min Mat Sto Rec Scr Fac Was Fac Low Low Dat Pro Fac Upp Upp Zhi Pro Fac Was Fac Arm Lab Res Qua Res Tes Frg Matter Collected 10164 | 349 652 237 880 331 . 105 428 890 124 . 144 29 31 161 16 . 92 231 . 2 114 . 186 19 28 97 . 77 . 28 . 4913 Remotely . | . . . . . . . . . . . . . . . . . . . . . . . . . . . . . . . . . Salvage Created 10722 | 183 963 231 1474 276 . 91 582 1448 296 . 27 . 32 . 16 . . 233 . . 216 . 737 . 72 . . 106 . . . 3739 Parts 574 | 18 57 18 86 16 . 4 25 91 15 . 3 . 3 . 5 . . 11 . . 6 . 31 . 5 . . 6 . . . 174 Haulers Intercepted 16 | . 2 . 6 . . . 1 . . . . . . . . . . 1 . . . . 5 . . . . 1 . . . . Recyclers Shooed 11 | . 2 1 2 . . 2 1 1 . . . . . . . . . . . . . . 2 . . . . . . . . . Parts Field Recycled . | . . . . . . . . . . . . . . . . . . . . . . . . . . . . . . . . . Retrieved Matter . | . . . . . . . . . . . . . . . . . . . . . . . . . . . . . . . . . Parts Self-Destructed 8 | . . . . . . . . . . . . . . . 2 . . . . . 6 . . . . . . . . . . . Prevented . | . . . . . . . . . . . . . . . . . . . . . . . . . . . . . . . . . Parts Restored 2 | . . . . . . . . . . . . . . . . . . . . . . . . . . . . . . . . 2 Faulty 2 | . . . . . . . . . . . . . . . . . . . . . . . . . . . . . . . . 2 Kills | -11 -10 -10 -9 -9 -9 -8 -8 -8 -8 -8 -6 -6 -6 -6 -6 -6 -5 -5 -5 -5 -5 -4 -4 -4 -4 -4 -4 -3 -3 -2 -2 -2 ------- Run | Yrd Mat Min Mat Min Exi Min Mat Sto Rec Scr Fac Was Fac Low Low Dat Pro Fac Upp Upp Zhi Pro Fac Was Fac Arm Lab Res Qua Res Tes Frg Combat Hostiles Destroyed 184 | . 18 9 30 17 . 3 11 30 5 . . . . . 4 . . . . . . . . . . . . 1 . . . 56 Melee 10 | . . . . . . . 1 . . . . . . . . . . . . . . . . . . . . . . . . 9 Guns 77 | . 18 2 16 3 . . 7 25 5 . . . . . . . . . . . . . . . . . . . . . . 1 Cannons 62 | . . 1 8 6 . 3 . . . . . . . . . . . . . . . . . . . . . . . . . 44 AOE 33 | . . 6 6 8 . . 3 5 . . . . . . 4 . . . . . . . . . . . . 1 . . . . Classes Destroyed 24 | 3 5 2 1 1 . . . 4 . . . . . . . . . . . . . . . . 1 . . 1 . . . 6 Worker 11 | 1 . . 2 . . . . 1 . . 2 . 1 . . . . 1 . . . . 3 . . . . . . . . . Builder 13 | . 1 1 . 1 . . 1 4 1 . . . . . . . . 1 . . . . 1 . 2 . . . . . . . Tunneler 9 | 5 . 1 . 1 . . 1 . . . . . 1 . . . . . . . . . . . . . . . . . . . Hauler 16 | . 2 . 6 . . . 1 . . . . . . . . . . 1 . . . . 5 . . . . 1 . . . . Recycler 9 | 1 2 1 1 1 . . 1 . . . . . . . . . . 1 . . . . 1 . . . . . . . . . Mechanic 2 | . . . . . . . . . . . . . . . . . . . . . . . . . 1 . . . . . . 1 Operator 10 | . . . 5 . . . . 3 . . . . . . . . . . . . . . 2 . . . . . . . . . Drone 3 | . . . . . . . . . . . . . . . . . . . . . . . . . . . . . . . . 3 Watcher 8 | . 2 . 5 . . . . 1 . . . . . . . . . . . . . . . . . . . . . . . . Swarmer 38 | . 6 6 8 1 . . 3 4 . . . . . . 4 . . . . . . . . . . . . . . . . 6 Cutter 1 | . . . . . . . . . . . . . . . . . . . . . . . . . . . . 1 . . . . Saboteur 4 | . . . . . . . . . . . . . . . . . . . . . . . . . . . . . . . . 4 Grunt 63 | . 12 . 15 5 . 3 5 12 1 . . . . . . . . . . . . . . . . . . . . . . 10 Brawler 2 | . . . . . . . . 2 . . . . . . . . . . . . . . . . . . . . . . . . Duelist 4 | . . . . . . . . 2 1 . . . . . . . . . . . . . . . . . . . . . . 1 Protector 3 | . . . . . . . . 2 . . . . . . . . . . . . . . . . . . . . . . . 1 Researcher 3 | . . . . . . . . . . . . . . . . . . . . . . . . . . . . . . . . 3 Sentry 30 | . . 2 7 . . . 3 7 2 . . . . . . . . . . . . . . . . . . . . . . 9 Demolisher 2 | . . . . 2 . . . . . . . . . . . . . . . . . . . . . . . . . . . . Hunter 8 | . . . . . . . . 1 1 . . . . . . . . . . . . . . . . . . . . . . 6 Programmer 2 | . . . . . . . . . . . . . . . . . . . . . . . . . . . . . . . . 2 Decapitator 10 | . . . . . . . . . . . . . . . . . . . . . . . . . . . . . . . . 10 Immortal 2 | . . . . . . . . . . . . . . . . . . . . . . . . . . . . . . . . 2 Striker 1 | . . . . . . . . . . . . . . . . . . . . . . . . . . . . . . . . 1 Executioner 1 | . . . . . . . . . . . . . . . . . . . . . . . . . . . . . . . . 1 Assembled 10 | . . 1 . 9 . . . . . . . . . . . . . . . . . . . . . . . . . . . . Best Kill Streak 13 | 3 4 4 10 11 . 3 3 13 4 . 1 . 1 . 4 . . 2 . . . . 3 . 2 . . 1 . . . 6 Combat Bots Only 12 | . 4 3 9 11 . 3 3 12 3 . . . . . 4 . . . . . . . . . . . . 1 . . . 6 Max Kills in Single Turn 6 | 1 2 2 5 4 . 1 3 6 1 . 1 . 1 . 2 . . 1 . . . . 1 . 1 . . 1 . . . 4 Gunslinging 1 | . 1 . . . . . . 1 . . . . . . . . . . . . . . . . . . . . . . . . Exploded 5 | . . 2 5 4 . . 3 5 . . . . . . 2 . . . . . . . . . . . . 1 . . . . Melee 1 | . . . . . . . 1 . . . . . . . . . . . . . . . . . . . . . . . . 1 Uniques/NPCs Destroyed . | . . . . . . . . . . . . . . . . . . . . . . . . . . . . . . . . . Combat | -11 -10 -10 -9 -9 -9 -8 -8 -8 -8 -8 -6 -6 -6 -6 -6 -6 -5 -5 -5 -5 -5 -4 -4 -4 -4 -4 -4 -3 -3 -2 -2 -2 -------- Run | Yrd Mat Min Mat Min Exi Min Mat Sto Rec Scr Fac Was Fac Low Low Dat Pro Fac Upp Upp Zhi Pro Fac Was Fac Arm Lab Res Qua Res Tes Frg Hostile Shots Fired 1252 | . 86 31 95 73 . 59 50 148 19 . . . 15 1 23 . 27 15 . 2 . 6 10 . 6 43 . 35 8 68 14 418 Missed 483 | . 24 6 28 19 . 17 16 32 6 . . . 10 . 14 . 12 7 . 1 . 3 3 . 5 34 . 19 3 38 12 174 Deflected 4 | . . . . . . . . . . . . . . . . . . . . . . . . . . . . . . . . 4 Hits 769 | . 62 25 67 54 . 42 34 116 13 . . . 5 1 9 . 15 8 . 1 . 3 7 . 1 9 . 16 5 30 2 244 Melee 36 | . . . . 3 . . . 8 1 . . . . 1 . . . . . . . . . . . . . 3 . . . 20 Projectile 733 | . 62 25 67 51 . 42 34 108 12 . . . 5 . 9 . 15 8 . 1 . 3 7 . 1 9 . 13 5 30 2 224 AOE 21 | . . . . 15 . . . . . . . . . . . . . . . . . . . . . . . 2 . . . 4 Critical Strikes 59 | . 1 . 1 1 . 4 7 7 1 . . . . . . . 1 . . . . . 2 . . 2 . . . . . 32 Actively Blocked 1 | . . . . . . . . . . . . . . . . . . . . . . . . . . . . . . . . 1 Part Disruptions 1 | . . . . . . . . . . . . . . . . . . . . . . . . . . . . . . 1 . . Damage Taken 15919 | . 750 382 819 1159 . 690 525 1922 221 . . . 32 . 137 . 294 142 . 24 . 64 342 . 23 113 . 361 114 840 44 6921 Core 2512 | . 83 39 53 146 . 127 48 196 43 . . . . . 30 . 93 52 . . . 46 62 . . 38 . 27 25 112 . 1292 Absorbed by Shields 60 | . . . . . . . . . . . . . . . . . . 15 . . . . . . . . . . . . . 45 Redirected to Shielding 191 | . . . . . . . . . . . . . . . . . . . . . . . 59 . . . . . . . . 132 Regen/Repaired (Parts) 307 | . . . 142 . . . 127 . . . . 9 . . . . . . . . . . . 7 . . . . . 22 . . Core Remaining (%) 71 | 100 . 51 . . . 18 . . . 47 . . . . . . 85 . . . . 90 . . . . 84 . 96 . . . Volleys Fired 742 | 16 76 23 99 34 . 17 43 94 14 . 1 . 4 . 7 . . 1 . . . . 12 . 3 4 . 28 53 39 10 164 Largest 2 | 2 2 2 2 2 . 2 2 2 2 . 1 . 1 . 1 . . 1 . . . . 1 . 1 1 . 1 1 1 1 2 Hottest 158 | 40 46 66 66 66 . 66 66 50 50 . 36 . 36 . 36 . . 36 . . . . 90 . 90 90 . 90 90 90 54 158 Shots Fired 1129 | 32 152 33 194 61 . 34 82 186 28 . 1 . 4 . 7 . . 1 . . . . 12 . 4 4 . 27 53 40 10 164 Gun 689 | 32 152 12 147 22 . . 72 184 28 . . . . . . . . . . . . . . . . . . . . . . 40 Cannon 406 | . . 16 44 32 . 34 6 . . . . . . . . . . . . . . . 12 . 4 4 . 27 53 40 10 124 Launcher 34 | . . 5 3 7 . . 4 2 . . 1 . 4 . 7 . . 1 . . . . . . . . . . . . . . Special . | . . . . . . . . . . . . . . . . . . . . . . . . . . . . . . . . . Kinetic 911 | 32 152 28 191 54 . 34 78 184 28 . . . . . . . . . . . . . . . . . . . . 7 1 122 Thermal 184 | . . . . . . . . . . . . . . . . . . . . . . . 12 . 4 4 . 27 53 33 9 42 Explosive 34 | . . 5 3 7 . . 4 2 . . 1 . 4 . 7 . . 1 . . . . . . . . . . . . . . Electromagnetic . | . . . . . . . . . . . . . . . . . . . . . . . . . . . . . . . . . Robot Hit Streak 30 | 5 9 11 19 14 . 9 30 14 6 . . . . . . . . . . . . . . . . . . 8 11 . . 17 Robot Miss Streak 9 | 3 4 1 3 2 . 3 1 3 1 . . . . . 1 . . . . . . . . . . 2 . 4 1 1 2 9 Penetration Max 2 | . . . . . . . . . . . . . . . . . . . . . . . . . . . . . . . . 2 Secondary Targets 10 | . 3 1 . 1 . . 1 4 . . . . . . . . . . . . . . . . . . . . . . . . Max Gunslinging Chain 1 | . 1 1 . 1 . . 1 1 . . . . . . . . . . . . . . . . . . . . . . . . Shots Hit Robots 708 | 18 97 14 124 40 . 26 69 117 21 . 2 . 3 1 . . . 8 . . 5 . 26 . 6 . . 9 9 . . 113 Core Hits 490 | 8 41 18 62 41 . 9 27 70 9 . 1 . . . 5 . . 3 . . 2 . 11 . . . . 2 . . . 181 Critical Kills 50 | . 1 . 1 . . . . . . . . . . . . . . . . . . . . . . . . . . . . 48 Critical Parts Destroyed 64 | . 1 . . 1 . . . 1 . . . . . . . . . . . . . . . . . . . . . . . 61 Critical Strikes 130 | . 2 . 4 1 . . 1 1 . . . . . . . . . 1 . . . . 2 . . . . . . . . 118 Meltdown 2 | . . . . . . . . . . . . . . . . . . . . . . . . . . . . . . . . 2 Destroy 119 | . 2 . 1 1 . . . 1 . . . . . . . . . . . . . . . . . . . . . . . 114 Blast 4 | . . . 3 . . . 1 . . . . . . . . . . . . . . . . . . . . . . . . . Sever 5 | . . . . . . . . . . . . . . . . . . 1 . . . . 2 . . . . . . . . 2 Melee Attacks 238 | . . . . . . . . 8 . . 6 . 16 4 2 . 2 35 . . 5 3 60 1 22 11 . 20 . . . 43 Impact 8 | . . . . . . . . 8 . . . . . . . . . . . . . . . . . . . . . . . . Slashing 229 | . . . . . . . . . . . 6 . 16 4 2 . 2 35 . . 5 3 59 1 22 11 . 20 . . . 43 Piercing . | . . . . . . . . . . . . . . . . . . . . . . . . . . . . . . . . . Sneak Attacks 32 | . . . . . . . . 2 . . 2 . 2 . . . . 4 . . . . 13 . 6 . . 1 . . . 2 Combat Hostiles . | . . . . . . . . . . . . . . . . . . . . . . . . . . . . . . . . . Follow-up Attacks 2 | . . . . . . . . . . . . . . . . . . . . . . . . . . . . . . . . 2 Martial Strikes 8 | . . . . . . . . . . . . . . . . . . . . . . . . . . . . . . . . 8 Damage Inflicted 18604 | 280 1394 487 2541 1346 . 616 1272 2753 394 . 149 . 185 29 420 . . 400 . . 346 . 1361 . 402 . . 344 316 . . 3569 Guns 7134 | 239 1378 148 1440 300 . . 971 1916 379 . . . . . . . . . . . . . . . . . . . . . . 363 Cannons 4031 | . . 43 638 401 . 554 88 . . . . . . . . . . . . . . . . . . . . 276 316 . . 1715 Explosions 2409 | . . 263 375 569 . . 186 596 . . . . . . 420 . . . . . . . . . . . . . . . . . Melee 4564 | . . . . . . . . 157 . . 149 . 185 29 . . . 400 . . 346 . 1361 . 402 . . 68 . . . 1467 Ramming 466 | 41 16 33 88 76 . 62 27 84 15 . . . . . . . . . . . . . . . . . . . . . . 24 Kinetic 9730 | 239 1378 191 2078 701 . 554 1059 1916 379 . . . . . . . . . . . . . . . . . . . . . . 1235 Thermal 1435 | . . . . . . . . . . . . . . . . . . . . . . . . . . . . 276 316 . . 843 Explosive 2409 | . . 263 375 569 . . 186 596 . . . . . . 420 . . . . . . . . . . . . . . . . . Electromagnetic . | . . . . . . . . . . . . . . . . . . . . . . . . . . . . . . . . . Impact 157 | . . . . . . . . 157 . . . . . . . . . . . . . . . . . . . . . . . . Slashing 4407 | . . . . . . . . . . . 149 . 185 29 . . . 400 . . 346 . 1361 . 402 . . 68 . . . 1467 Piercing . | . . . . . . . . . . . . . . . . . . . . . . . . . . . . . . . . . Highest Corruption 18 | . 2 2 . . . . . . . . . . . . . . . 3 3 3 3 3 . 5 7 8 8 4 4 2 2 18 Average Corruption 5 | . 2 2 . . . . . . . . . . . . . . . 3 3 3 3 3 . 5 5 7 8 3 4 1 2 7 Corruption Purged . | . . . . . . . . . . . . . . . . . . . . . . . . . . . . . . . . . Corruption Blocked . | . . . . . . . . . . . . . . . . . . . . . . . . . . . . . . . . . Effects 186 | . 1 18 . . . . . . . . . . . . . . . 7 1 3 4 4 . 2 7 11 . 7 7 2 1 111 Message Errors 40 | . . 4 . . . . . . . . . . . . . . . 1 . . . . . . 1 . . 2 3 . . 29 Matter Fused 46 | . . 5 . . . . . . . . . . . . . . . . . 1 2 1 . 2 . 5 . 1 2 . 1 26 Heat Flow Errors 20 | . 1 5 . . . . . . . . . . . . . . . 2 1 . . . . . 1 2 . 2 1 . . 5 Energy Discharges 25 | . . 3 . . . . . . . . . . . . . . . 2 . 1 . 2 . . 2 1 . . . . . 14 Parts Rejected 5 | . . . . . . . . . . . . . . . . . . . . . . . . . . . . . . . . 5 Data Loss (minor) 18 | . . . . . . . . . . . . . . . . . . 1 . 1 1 1 . . 2 1 . 1 . 1 . 9 Data Loss (major) 11 | . . . . . . . . . . . . . . . . . . . . . 1 . . . . 2 . . 1 . . 7 Misfires 2 | . . . . . . . . . . . . . . . . . . . . . . . . . 1 . . . . 1 . . Alerts 8 | . . . . . . . . . . . . . . . . . . 1 . . . . . . . . . . . . . 7 Misdirections 5 | . . . . . . . . . . . . . . . . . . . . . . . . . . . . . . . . 5 Weapon Failures 6 | . . 1 . . . . . . . . . . . . . . . . . . . . . . . . . 1 . . . 4 Overload Shots . | . . . . . . . . . . . . . . . . . . . . . . . . . . . . . . . . . Overflow Damage 968 | . . 41 . 20 . 1 16 104 . . 33 . 85 . 48 . . 66 . . 142 . 129 . 153 . . 28 . . . 102 Projectiles 21 | . . . . 20 . 1 . . . . . . . . . . . . . . . . . . . . . . . . . . Explosions 105 | . . 41 . . . . 16 . . . . . . . 48 . . . . . . . . . . . . . . . . . Melee 842 | . . . . . . . . 104 . . 33 . 85 . . . . 66 . . 142 . 129 . 153 . . 28 . . . 102 Knockbacks 61 | . . . 5 5 . 4 2 2 . . . . . . . . . . . . . . . . . . . . . . . 43 Impact 4 | . . . . 1 . . 1 2 . . . . . . . . . . . . . . . . . . . . . . . . Kinetic 56 | . . . 5 4 . 4 1 . . . . . . . . . . . . . . . . . . . . . . . . 42 Secondary 1 | . . . . . . . . . . . . . . . . . . . . . . . . . . . . . . . . 1 Self-Inflicted Damage 227 | . . 78 17 67 . . . 48 . . . . . . 5 . . . . . . . . . . . . . . . . 12 Shots 11 | . . 3 1 4 . . . 2 . . . . . . 1 . . . . . . . . . . . . . . . . . Rammed 40 | 6 4 3 11 5 . 8 2 . . . . . . . . . . . . . . . . . . . . . . . . 1 Targets Rammed 53 | 7 4 3 12 7 . 8 3 7 1 . . . . . . . . . . . . . . . . . . . . . . 1 Kicked 7 | . . . . . . . . 6 1 . . . . . . . . . . . . . . . . . . . . . . . Crushed 6 | 1 . . 1 2 . . 1 1 . . . . . . . . . . . . . . . . . . . . . . . . Highest Temperature 301 | . 143 275 108 36 . 184 17 225 151 . 301 . . . 8 . . 279 116 . . 44 15 . 213 233 . 232 221 34 6 200 Average Temperature 63 | . 23 84 27 15 . 125 8 62 60 . 169 . . . 3 . . 138 66 . . 28 6 . 97 70 . 80 128 11 4 46 Received Heat Transfer 3112 | . 351 63 303 135 . 450 351 909 99 . . . 6 . . . 18 18 . 9 . 24 21 . . 37 . 18 . 54 9 237 Siege Activations . | . . . . . . . . . . . . . . . . . . . . . . . . . . . . . . . . . Martial Activations . | . . . . . . . . . . . . . . . . . . . . . . . . . . . . . . . . . Shielding Activations . | . . . . . . . . . . . . . . . . . . . . . . . . . . . . . . . . . Robots Disrupted . | . . . . . . . . . . . . . . . . . . . . . . . . . . . . . . . . . Combat Hostiles . | . . . . . . . . . . . . . . . . . . . . . . . . . . . . . . . . . Robots Corrupted 2 | . . . . . . . . 2 . . . . . . . . . . . . . . . . . . . . . . . . Combat Hostiles . | . . . . . . . . . . . . . . . . . . . . . . . . . . . . . . . . . Parts Fried 5 | . . . . . . . . 5 . . . . . . . . . . . . . . . . . . . . . . . . Impact Corruptions 7 | . . . . . . . . 7 . . . . . . . . . . . . . . . . . . . . . . . . Robots Melted 2 | . . . . . . . . . . . . . . . . . . . . . . . . . . . . . . . . 2 Combat Hostiles 2 | . . . . . . . . . . . . . . . . . . . . . . . . . . . . . . . . 2 Parts Melted 5 | . . . . . . . . . . . . . . . . . . . . . . . . . . . . . . . . 5 Heat Transferred 1229 | . . . . . . . . . . . . . . . . . . . . . . . . . . . . 296 333 . . 600 Parts Sabotaged 4 | . . . . . . . . . . . . . . . . . . . . . . . . . . . . . . . . 4 Parts Stolen 1 | . . . . . . . . . . . . . . 1 . . . . . . . . . . . . . . . . . . Parts Stripped . | . . . . . . . . . . . . . . . . . . . . . . . . . . . . . . . . . Power Chain Reactions . | . . . . . . . . . . . . . . . . . . . . . . . . . . . . . . . . . Alert | -11 -10 -10 -9 -9 -9 -8 -8 -8 -8 -8 -6 -6 -6 -6 -6 -6 -5 -5 -5 -5 -5 -4 -4 -4 -4 -4 -4 -3 -3 -2 -2 -2 ------- Run | Yrd Mat Min Mat Min Exi Min Mat Sto Rec Scr Fac Was Fac Low Low Dat Pro Fac Upp Upp Zhi Pro Fac Was Fac Arm Lab Res Qua Res Tes Frg Maximum Alert Level 5 | . 1 . 2 1 . . . 1 . . . . . . . . . . . . . . 1 . . 1 . . . 2 2 5 Low Security (%) 74 | 100 83 100 70 89 . 100 100 55 100 . 100 100 100 . . . . 100 . . . . 74 100 100 65 . 100 100 87 . 30 Level 1 12 | . 16 . 5 10 . . . 45 . . . . . . . . . . . . . . 25 . . 34 . . . 5 59 13 Level 2 5 | . . . 23 . . . . . . . . . . . . . . . . . . . . . . . . . . 7 40 11 Level 3 1 | . . . . . . . . . . . . . . . . . . . . . . . . . . . . . . . . 9 Level 4 5 | . . . . . . . . . . . . . . . . . . . . . . . . . . . . . . . . 30 Level 5 . | . . . . . . . . . . . . . . . . . . . . . . . . . . . . . . . . 4 High Security . | . . . . . . . . . . . . . . . . . . . . . . . . . . . . . . . . . Max Security . | . . . . . . . . . . . . . . . . . . . . . . . . . . . . . . . . . Peak Influence 1778 | 10 243 185 499 241 . 60 129 315 100 . 24 13 27 . . . . 163 . . . . 309 80 103 368 . 163 133 499 449 1778 Initial 280 | . . 90 . 171 . . . 50 99 . . 1 . . . . . 53 . . . . 46 63 46 46 . . 64 62 280 246 Average 200 | . 72 48 154 71 . 16 52 172 27 . 3 2 5 . . . . 99 . . . . 111 66 62 147 . 63 82 102 374 712 Influence Increases 10052 | 35 603 261 971 302 . 70 393 862 214 . 57 21 114 . 90 . 135 467 . . 15 135 559 103 159 560 . 294 187 687 249 2509 Destroy 0b10 Robot/C 3500 | . 360 160 600 200 . 60 220 560 100 . . . . . 80 . . . . . . . . . . 40 . 20 . . . 1100 Destroy 0b10 Robot/NC 440 | 35 35 15 95 15 . . 20 60 5 . 10 . 10 . . . . 20 . . 15 . 60 . 15 . . 5 . . . 25 Destroy Leader 706 | . 88 20 192 40 . 10 62 142 . . . . . . 10 . . 2 . . . . 8 . . 20 . 12 . . . 100 Allied During Kill 20 | . . . . 7 . . . . . . . . . . . . . . . . . . . . . 13 . . . . . . Successful Hack 371 | . 29 . 24 . . . 27 22 19 . 21 . 21 . . . . 21 . . . . 27 . 18 13 . 3 51 57 12 6 Select Force Hacks 90 | . . . . . . . . . 90 . . . . . . . . . . . . . . . . . . . . . . . Disable Machine 585 | . 15 30 15 . . . . 60 . . 15 . . . . . . 30 . . . . 15 . 15 60 . . 15 . 75 240 Anti-Garrison Action 150 | . . . . . . . . . . . . . . . . . . . . . . . . . . . . . . . . 150 Destroy Structure 875 | . 1 36 30 40 . . 19 18 . . 11 21 38 . . . . 64 . . . . 74 88 36 24 . 74 46 60 12 183 Partial Spotted 435 | . . . . . . . . . . . . . 15 . . . . 30 . . . . 60 15 60 30 . 45 15 60 30 75 Lose Combat Pursuer 2880 | . 75 . 15 . . . 45 . . . . . 30 . . . 135 300 . . . 135 315 . 15 360 . 135 60 510 120 630 Influence Decreases 8394 | 35 371 493 531 742 . 70 272 729 468 . 53 25 99 15 10 80 50 458 66 28 10 65 453 218 130 504 151 179 191 299 309 1290 Entered New Map 1684 | . . 142 . 269 . . . 71 155 . . 3 . 6 . 80 . 32 36 6 . 5 29 118 20 49 151 . 51 49 219 193 Time Decay 5337 | 35 331 331 511 373 . 70 254 534 293 . 53 22 99 9 10 . 30 416 30 22 10 60 314 40 110 188 . 155 140 170 80 647 Search Patrol Dispatched 200 | . . . . . . . . . . . . . . . . . . . . . . . 100 . . 100 . . . . . . Lost Part 852 | . 40 20 20 40 . . 18 90 20 . . . . . . . 20 10 . . . . 10 . . . . 24 . 80 10 450 Lost Ally 287 | . . . . 60 . . . . . . . . . . . . . . . . . . . 60 . 167 . . . . . . Purge Threat 34 | . . . . . . . . 34 . . . . . . . . . . . . . . . . . . . . . . . . Squads Dispatched 80 | . 3 . 8 . . . 1 5 . . 4 . 10 . . . 1 12 . . . . 11 . 1 3 . 4 2 3 1 11 Investigation 37 | . 2 . 3 . . . . 1 . . 4 . 7 . . . . 8 . . . . 6 . . . . 1 . 1 . 4 Extermination 15 | . . . . . . . . . . . . . 1 . . . . 2 . . . . 3 . 1 2 . 2 1 1 1 1 Reinforcement 24 | . 1 . 4 . . . 1 2 . . . . 2 . . . . 2 . . . . 2 . . 1 . 1 1 1 . 6 Assault 4 | . . . 1 . . . . 2 . . . . . . . . 1 . . . . . . . . . . . . . . . Garrison . | . . . . . . . . . . . . . . . . . . . . . . . . . . . . . . . . . Intercept . | . . . . . . . . . . . . . . . . . . . . . . . . . . . . . . . . . Searches Triggered 2 | . . . . . . . . . . . . . . . . . . . . . . . 1 . . 1 . . . . . . Data Miner Redirects 1 | . . . . . . . . . . . . . . . . . . . . . . . . . . . . . . 1 . . Construction Impeded 1 | . . . . . . . 1 . . . . . . . . . . . . . . . . . . . . . . . . . Haulers Reinforced 2 | . . . . . . . . . . . . . . . . . . 1 . . . . . . . . . . 1 . . . Active Scanning Responses . | . . . . . . . . . . . . . . . . . . . . . . . . . . . . . . . . . Cargo Convoy Interrupts . | . . . . . . . . . . . . . . . . . . . . . . . . . . . . . . . . . Stealth | -11 -10 -10 -9 -9 -9 -8 -8 -8 -8 -8 -6 -6 -6 -6 -6 -6 -5 -5 -5 -5 -5 -4 -4 -4 -4 -4 -4 -3 -3 -2 -2 -2 --------- Run | Yrd Mat Min Mat Min Exi Min Mat Sto Rec Scr Fac Was Fac Low Low Dat Pro Fac Upp Upp Zhi Pro Fac Was Fac Arm Lab Res Qua Res Tes Frg Distress Signals 39 | . 3 1 . . . . 2 2 . . . . 1 . . . . 3 . . . . 3 . . 2 . 2 . 4 . 16 Communications Jammed . | . . . . . . . . . . . . . . . . . . . . . . . . . . . . . . . . . Distress Signals . | . . . . . . . . . . . . . . . . . . . . . . . . . . . . . . . . . Times Spotted 578 | . 37 9 42 28 . 6 15 40 4 . 1 5 3 1 4 . 7 21 . 1 . 8 32 6 9 39 . 18 8 41 13 180 Peak Tracking Total 28 | . 6 3 7 12 . 3 4 9 3 . 1 6 2 1 4 . 9 8 . 1 . 5 13 4 8 23 . 11 6 26 4 28 Tactical Retreats 84 | . 5 . 1 1 . . 3 . . . . 1 2 . . . 3 11 . . . 3 9 . 1 7 . 4 1 5 2 25 Traps | -11 -10 -10 -9 -9 -9 -8 -8 -8 -8 -8 -6 -6 -6 -6 -6 -6 -5 -5 -5 -5 -5 -4 -4 -4 -4 -4 -4 -3 -3 -2 -2 -2 ------- Run | Yrd Mat Min Mat Min Exi Min Mat Sto Rec Scr Fac Was Fac Low Low Dat Pro Fac Upp Upp Zhi Pro Fac Was Fac Arm Lab Res Qua Res Tes Frg Traps Triggered 30 | . 3 . 4 . . . . . . . 1 . 2 . . . . 3 . . . . 2 . 1 . . 1 . . . 13 Indirectly . | . . . . . . . . . . . . . . . . . . . . . . . . . . . . . . . . . Trap Hack Attempts . | . . . . . . . . . . . . . . . . . . . . . . . . . . . . . . . . . Triggered . | . . . . . . . . . . . . . . . . . . . . . . . . . . . . . . . . . Disarmed 4 | . 4 . . . . . . . . . . . . . . . . . . . . . . . . . . . . . . . Reprogrammed . | . . . . . . . . . . . . . . . . . . . . . . . . . . . . . . . . . Reused . | . . . . . . . . . . . . . . . . . . . . . . . . . . . . . . . . . Traps Extracted . | . . . . . . . . . . . . . . . . . . . . . . . . . . . . . . . . . Installed . | . . . . . . . . . . . . . . . . . . . . . . . . . . . . . . . . . Triggered . | . . . . . . . . . . . . . . . . . . . . . . . . . . . . . . . . . Most Traps Carried 1 | . . 1 1 . . . . . . . . . . . . . . . . . . . . . . . . . . . . . Machines | -11 -10 -10 -9 -9 -9 -8 -8 -8 -8 -8 -6 -6 -6 -6 -6 -6 -5 -5 -5 -5 -5 -4 -4 -4 -4 -4 -4 -3 -3 -2 -2 -2 ---------- Run | Yrd Mat Min Mat Min Exi Min Mat Sto Rec Scr Fac Was Fac Low Low Dat Pro Fac Upp Upp Zhi Pro Fac Was Fac Arm Lab Res Qua Res Tes Frg Machines Disabled 46 | . 1 2 1 . . . . 4 . . 1 . . . . . . 2 . . . . 1 . 1 4 . . 1 . 5 23 Max in Single Turn 2 | . 1 1 1 . . . . 1 . . 1 . . . . . . 1 . . . . 1 . 1 1 . . 1 . 1 2 Garrison Access 6 | . . . . . . . . . . . . . 1 . . . . 2 . . . . 1 . . . . 1 . . . 1 Machines Repaired . | . . . . . . . . . . . . . . . . . . . . . . . . . . . . . . . . . Machines Dismantled . | . . . . . . . . . . . . . . . . . . . . . . . . . . . . . . . . . Machines Sabotaged . | . . . . . . . . . . . . . . . . . . . . . . . . . . . . . . . . . Overloaded Fab Kills . | . . . . . . . . . . . . . . . . . . . . . . . . . . . . . . . . . Hacking | -11 -10 -10 -9 -9 -9 -8 -8 -8 -8 -8 -6 -6 -6 -6 -6 -6 -5 -5 -5 -5 -5 -4 -4 -4 -4 -4 -4 -3 -3 -2 -2 -2 --------- Run | Yrd Mat Min Mat Min Exi Min Mat Sto Rec Scr Fac Was Fac Low Low Dat Pro Fac Upp Upp Zhi Pro Fac Was Fac Arm Lab Res Qua Res Tes Frg Machines Accessed 141 | . 9 . 9 . 1 . 4 10 8 2 7 . 11 1 1 3 . 16 . 1 4 . 17 . 4 5 . 8 6 5 3 6 Terminals 75 | . 8 . 6 . . . 3 9 5 . 3 . 2 . 1 . . 5 . . . . 8 . 4 5 . 4 5 3 2 2 Fabricators 3 | . . . . . . . . . . . . . 1 . . . . 1 . . . . 1 . . . . . . . . . Repair Stations 5 | . . . 1 . . . 1 . . . . . 1 . . . . . . . . . . . . . . . . 1 1 . Recycling Units 33 | . 1 . 1 . . . . . 3 . 4 . 6 . . . . 7 . . . . 6 . . . . 1 . 1 . 3 Scanalyzers 5 | . . . 1 . . . . . . . . . . . . . . 1 . . . . 1 . . . . 1 1 . . . Garrison Access 8 | . . . . . . . . 1 . . . . 1 . . . . 2 . . . . 1 . . . . 2 . . . 1 Total Hacks 315 | . 26 . 19 . 1 . 12 18 13 6 12 . 22 1 2 14 . 30 . 1 17 . 30 . 9 11 . 21 14 11 11 14 Successful 206 | . 13 . 14 . 1 . 9 11 11 6 7 . 11 1 2 14 . 22 . 1 17 . 21 . 4 5 . 12 8 7 3 6 Failed 106 | . 12 . 5 . . . 3 7 2 . 5 . 11 . . . . 7 . . . . 9 . 5 6 . 8 6 4 8 8 Catastrophic 21 | . 3 . . . . . . 2 . . 2 . 2 . . . . 1 . . . . 1 . . 3 . 1 . 4 2 . Database Lockouts 3 | . 1 . . . . . . . . . . . . . . . . 1 . . . . . . . . . 1 . . . . Manual 148 | . 19 . 11 . . . 4 9 13 . 6 . 11 . . . . 18 . . . . 14 . 3 9 . 9 5 4 1 12 Terminals 182 | . 25 . 12 . . . 7 16 9 . 7 . 9 . 2 . . 16 . . . . 18 . 9 11 . 9 11 7 7 7 Fabricators 6 | . . . . . . . . . . . . . 1 . . . . 4 . . . . 1 . . . . . . . . . Repair Stations 16 | . . . 4 . . . 5 . . . . . 1 . . . . . . . . . . . . . . . . 2 4 . Recycling Units 46 | . 1 . 2 . . . . . 4 . 5 . 10 . . . . 7 . . . . 7 . . . . 3 . 2 . 5 Scanalyzers 11 | . . . 1 . . . . . . . . . . . . . . 1 . . . . 2 . . . . 4 3 . . . Garrison Access 14 | . . . . . . . . 2 . . . . 1 . . . . 2 . . . . 2 . . . . 5 . . . 2 Terminal Hacks 107 | . 4 . 1 . 1 . 3 5 1 6 3 . 2 1 2 14 . 9 . 1 17 . 10 . 3 5 . 6 3 5 2 3 Record 26 | . . . . . 1 . . . . 5 . . . . 2 11 . 1 . . 5 . . . . . . 1 . . . . Part Schematic 8 | . . . . . . . . . . . . . . . . . . 2 . . 4 . . . 1 . . . . . 1 . Robot Schematic 3 | . . . . . . . . . . . . . . . . 3 . . . . . . . . . . . . . . . . Robot Analysis 9 | . 2 . . . . . 1 . 1 . . . . . . . . . . . 4 . . . 1 . . . . . . . Prototype ID Bank 5 | . . . . . . . . . . . . . . . . . . . . . 4 . . . . . . . . 1 . . Open Door 6 | . . . . . . . . 3 . . . . . 1 . . . . . 1 . . . . . 1 . . . . . . Level Access Points 3 | . . . . . . . . . . . . . . . . . . . . . . . 1 . . . . 1 . . . 1 Branch Access Points 7 | . . . 1 . . . . . . . . . 1 . . . . 1 . . . . 1 . 1 . . 1 . 1 . . Emergency Access Points 1 | . . . . . . . . . . . . . . . . . . . . . . . 1 . . . . . . . . . Recycling Unit Index 3 | . . . . . . . . . . . 1 . . . . . . 1 . . . . . . . . . . . 1 . . Alert Level 3 | . . . . . . . 1 1 . . . . . . . . . . . . . . . . . . . . . . 1 . Unreport Threat 1 | . . . . . . . . 1 . . . . . . . . . . . . . . . . . . . . . . . . Locate Traps 4 | . . . . . . . . . . . . . . . . . . 1 . . . . 3 . . . . . . . . . Disarm Traps 1 | . 1 . . . . . . . . . . . . . . . . . . . . . . . . . . . . . . . Maintenance Status 1 | . . . . . . . . . . . . . . . . . . . . . . . . . . . . 1 . . . . Transport Status 2 | . . . . . . . . . . . 1 . . . . . . . . . . . . . . . . . . 1 . . Recall Extermination 3 | . . . . . . . . . . . . . . . . . . 1 . . . . 1 . . 1 . . . . . . Hauler Manifests 2 | . . . . . . . . . . . . . . . . . . . . . . . 1 . . . . 1 . . . . Registered Components 9 | . 1 . . . . . 1 . . . 1 . 1 . . . . 1 . . . . 1 . . 1 . 1 1 . . . Registered Prototypes 3 | . . . . . . . . . . . . . . . . . . 1 . . . . . . . 1 . . . 1 . . Zone Layout 6 | . . . . . . . . . . . . . . . . . . . . . . . 1 . . 1 . . 2 . . 2 Proto ID Catalog 1 | . . . . . . . . . . 1 . . . . . . . . . . . . . . . . . . . . . . Fabricator Hacks 4 | . . . . . . . . . . . . . 1 . . . . 2 . . . . 1 . . . . . . . . . Network Status 2 | . . . . . . . . . . . . . 1 . . . . . . . . . 1 . . . . . . . . . Load Schematic 1 | . . . . . . . . . . . . . . . . . . 1 . . . . . . . . . . . . . . Build 1 | . . . . . . . . . . . . . . . . . . 1 . . . . . . . . . . . . . . Repair Station Hacks 11 | . . . 4 . . . 3 . . . . . 1 . . . . . . . . . . . . . . . . 2 1 . Scan Component 7 | . . . 2 . . . 2 . . . . . 1 . . . . . . . . . . . . . . . . 1 1 . Repair 4 | . . . 2 . . . 1 . . . . . . . . . . . . . . . . . . . . . . 1 . . Recycling Unit Hacks 2 | . . . 1 . . . . . . . . . . . . . . . . . . . 1 . . . . . . . . . Retrieve Components 2 | . . . 1 . . . . . . . . . . . . . . . . . . . 1 . . . . . . . . . Scanalyzer 9 | . . . 1 . . . . . . . . . . . . . . . . . . . 2 . . . . 3 3 . . . Retrieve Study 9 | . . . 1 . . . . . . . . . . . . . . . . . . . 2 . . . . 3 3 . . . Garrison Access Hacks 5 | . . . . . . . . . . . . . 1 . . . . 2 . . . . 1 . . . . 1 . . . . Seal Access 5 | . . . . . . . . . . . . . 1 . . . . 2 . . . . 1 . . . . 1 . . . . Unauthorized Hacks 68 | . 9 . 7 . . . 3 6 10 . 4 . 6 . . . . 9 . . . . 6 . 1 . . 2 2 . . 3 Terminals 38 | . 9 . 7 . . . 3 6 7 . . . . . . . . 1 . . . . . . 1 . . 1 2 . . 1 Track 1 | . . . . . . . . . . . . . . . . . . . . . . . . . . . . . 1 . . . Assimilate 2 | . . . . . . . . . 1 . . . . . . . . . . . . . . . 1 . . . . . . . Botnet 10 | . 3 . 1 . . . . 1 1 . . . . . . . . 1 . . . . . . . . . 1 1 . . 1 Operators 2 | . . . 1 . . . 1 . . . . . . . . . . . . . . . . . . . . . . . . . Skim 23 | . 6 . 5 . . . 2 5 5 . . . . . . . . . . . . . . . . . . . . . . . Fabricators 1 | . . . . . . . . . . . . . . . . . . 1 . . . . . . . . . . . . . . Prioritize 1 | . . . . . . . . . . . . . . . . . . 1 . . . . . . . . . . . . . . Repair Stations . | . . . . . . . . . . . . . . . . . . . . . . . . . . . . . . . . . Recycling Units 29 | . . . . . . . . . 3 . 4 . 6 . . . . 7 . . . . 6 . . . . 1 . . . 2 Tunnel 3 | . . . . . . . . . 3 . . . . . . . . . . . . . . . . . . . . . . . Fedlink 26 | . . . . . . . . . . . 4 . 6 . . . . 7 . . . . 6 . . . . 1 . . . 2 Scanalyzers . | . . . . . . . . . . . . . . . . . . . . . . . . . . . . . . . . . Garrison Access . | . . . . . . . . . . . . . . . . . . . . . . . . . . . . . . . . . Data Cores Recovered 3 | . . . 1 . . . . . . . . . . . . . . . . . . . 2 . . . . . . . . . Used 2 | . . . . . . . . . . . . . . . . . . . . . . . 2 . . . . . . . . . Hacking Detections 69 | . 8 . 2 . . . 2 7 3 . 4 . 4 . . . . 6 . . . . 9 . 3 3 . 6 4 2 3 3 Full Trace Events 6 | . 1 . . . . . . 1 . . . . . . . . . 1 . . . . . . . . . . . 1 . 2 Feedback Events . | . . . . . . . . . . . . . . . . . . . . . . . . . . . . . . . . . Feedback Blocked . | . . . . . . . . . . . . . . . . . . . . . . . . . . . . . . . . . Robot Schematics Acquired 4 | . . . . . . . . . . . . . . . . 3 . . . . . . . . . . . . . . . 1 Robots Built . | . . . . . . . . . . . . . . . . . . . . . . . . . . . . . . . . . Authchips . | . . . . . . . . . . . . . . . . . . . . . . . . . . . . . . . . . Time . | . . . . . . . . . . . . . . . . . . . . . . . . . . . . . . . . . Total Robot Build Rating . | . . . . . . . . . . . . . . . . . . . . . . . . . . . . . . . . . Part Schematics Acquired 16 | . . . . . . . . . . . . . . . . . . 2 . . 4 . . . 1 . . . . . 1 8 Parts Built 1 | . . . . . . . . . . . . . . . . . . 1 . . . . . . . . . . . . . . Authchips 1 | . . . . . . . . . . . . . . . . . . 1 . . . . . . . . . . . . . . Time 33 | . . . . . . . . . . . . . . . . . . 33 . . . . . . . . . . . . . . Total Part Build Rating 4 | . . . . . . . . . . . . . . . . . . 4 . . . . . . . . . . . . . . Part Studies Acquired 8 | . . . 1 . . . . . . . . . . . . . . . . . . . 2 . . . . 2 3 . . . Parts Repaired 4 | . . . 2 . . . 1 . . . . . . . . . . . . . . . . . . . . . . 1 . . Time 152 | . . . 64 . . . 26 . . . . . . . . . . . . . . . . . . . . . . 62 . . Parts Recycled . | . . . . . . . . . . . . . . . . . . . . . . . . . . . . . . . . . Recycled Matter . | . . . . . . . . . . . . . . . . . . . . . . . . . . . . . . . . . Retrieved Matter . | . . . . . . . . . . . . . . . . . . . . . . . . . . . . . . . . . Retrieved Components 13 | . . . 10 . . . . . . . . . . . . . . . . . . . 3 . . . . . . . . . Parts Scanalyzed . | . . . . . . . . . . . . . . . . . . . . . . . . . . . . . . . . . Part Schematics Acquired . | . . . . . . . . . . . . . . . . . . . . . . . . . . . . . . . . . Parts Damaged . | . . . . . . . . . . . . . . . . . . . . . . . . . . . . . . . . . Bothacking | -11 -10 -10 -9 -9 -9 -8 -8 -8 -8 -8 -6 -6 -6 -6 -6 -6 -5 -5 -5 -5 -5 -4 -4 -4 -4 -4 -4 -3 -3 -2 -2 -2 ------------ Run | Yrd Mat Min Mat Min Exi Min Mat Sto Rec Scr Fac Was Fac Low Low Dat Pro Fac Upp Upp Zhi Pro Fac Was Fac Arm Lab Res Qua Res Tes Frg Used RIF Installer . | . . . . . . . . . . . . . . . . . . . . . . . . . . . . . . . . . Robots Hacked 1 | . . . . . . . . . . . . . . . . . . . . . . . 1 . . . . . . . . . Non-combat 1 | . . . . . . . . . . . . . . . . . . . . . . . 1 . . . . . . . . . Combat . | . . . . . . . . . . . . . . . . . . . . . . . . . . . . . . . . . Robot Hacks Applied 1 | . . . . . . . . . . . . . . . . . . . . . . . 1 . . . . . . . . . find_chute 1 | . . . . . . . . . . . . . . . . . . . . . . . 1 . . . . . . . . . Relay Couplers Released 1 | . . . . . . . . . . . . . . . . . . . . . . . . . . . . . . . . 1 Machine Destruction 1 | . . . . . . . . . . . . . . . . . . . . . . . . . . . . . . . . 1 Fabnet Peak Effective % . | . . . . . . . . . . . . . . . . . . . . . . . . . . . . . . . . . Robots Rewired 5 | . . . . . . . . . 2 . . . . . . . . . . . . . . . . 3 . . . . . . Allies Hacked 1 | . . . . . . . . . . . . . . . . . . . . . . . . . . 1 . . . . . . Hacks Repelled 1 | . . . . . . . . . . . . . . . . . . . . . . . . . 1 . . . . . . . Allies | -11 -10 -10 -9 -9 -9 -8 -8 -8 -8 -8 -6 -6 -6 -6 -6 -6 -5 -5 -5 -5 -5 -4 -4 -4 -4 -4 -4 -3 -3 -2 -2 -2 -------- Run | Yrd Mat Min Mat Min Exi Min Mat Sto Rec Scr Fac Was Fac Low Low Dat Pro Fac Upp Upp Zhi Pro Fac Was Fac Arm Lab Res Qua Res Tes Frg Total Allies 57 | . . . . 3 . . . 2 2 . . 19 . . . . . . . . . . . 18 1 12 . . . . . . Largest Group 19 | . . . . 3 . . . 2 2 2 2 19 1 . . . . . . . . . . 18 1 10 . . . . . . Highest-Rated Group 702 | . . . . 40 . . . 62 23 23 23 702 25 . . . . . . . . . . 656 26 481 . . . . . . Highest-Rated Ally 58 | . . . . 16 . . . 31 18 18 18 50 25 . . . . . . . . . . 50 26 58 . . . . . . Total Orders 2 | . . . . . . . . . . . 2 . . . . . . . . . . . . . . . . . . . . . STAY 2 | . . . . . . . . . . . 2 . . . . . . . . . . . . . . . . . . . . . Ally Attacks 236 | . . . . 15 . . . 8 . . 3 73 6 . . . . . . . . . . 84 . 47 . . . . . . Total Damage 10267 | . . . . 164 . . . 145 . . 75 3755 88 . . . . . . . . . . 4618 . 1422 . . . . . . Kills 28 | . . . . 4 . . . . . . . 10 . . . . . . . . . . . 11 . 3 . . . . . . Allies Corrupted . | . . . . . . . . . . . . . . . . . . . . . . . . . . . . . . . . . Allies Melted 1 | . . . . . . . . . . . . . . . . . . . . . . . . . . . . . . . . 1 Intel | -11 -10 -10 -9 -9 -9 -8 -8 -8 -8 -8 -6 -6 -6 -6 -6 -6 -5 -5 -5 -5 -5 -4 -4 -4 -4 -4 -4 -3 -3 -2 -2 -2 ------- Run | Yrd Mat Min Mat Min Exi Min Mat Sto Rec Scr Fac Was Fac Low Low Dat Pro Fac Upp Upp Zhi Pro Fac Was Fac Arm Lab Res Qua Res Tes Frg Active Infowar (turns) 16677 | 345 2428 . 505 586 707 2 670 833 . . 253 164 349 542 348 22 811 907 74 197 207 437 773 80 227 405 2 462 289 354 175 3523 Optics 5874 | . . . . . . . . . . . . . . . . . . . . . . . 357 80 227 405 2 462 289 354 175 3523 Sensors 8138 | . . . . 1 . . . . . . 252 164 349 535 321 . . 907 74 197 207 437 773 80 224 405 2 462 289 291 175 1993 Terrain 1294 | . . . . 585 707 2 . . . . . . . . . . . . . . . . . . . . . . . . . . Structural 6280 | . . . . . . . . . . . 253 164 349 542 348 22 811 385 74 197 207 437 773 80 227 405 2 462 289 253 . . Seismic 4781 | 345 2428 . 505 . . . 670 833 . . . . . . . . . . . . . . . . . . . . . . . . Cloaking 31 | . . . . . . . . . . . . . . . . . . . . . . . . . . . . 2 29 . . . Jamming 102 | . . . . . . . . . . . . . . . . . . 97 . . . . . . 5 . . . . . . . Robot Analysis Total 9 | . 2 . . . . . 1 . 1 . . . . . . . . . . . 4 . . . 1 . . . . . . . Derelict Logs Recovered 13 | . . 2 . 2 . . . . . . . . . 1 2 . 1 . 2 1 . 2 . . . . . . . . . . Drone Launches . | . . . . . . . . . . . . . . . . . . . . . . . . . . . . . . . . . Drone Recoveries . | . . . . . . . . . . . . . . . . . . . . . . . . . . . . . . . . . Exploration | -11 -10 -10 -9 -9 -9 -8 -8 -8 -8 -8 -6 -6 -6 -6 -6 -6 -5 -5 -5 -5 -5 -4 -4 -4 -4 -4 -4 -3 -3 -2 -2 -2 ------------- Run | Yrd Mat Min Mat Min Exi Min Mat Sto Rec Scr Fac Was Fac Low Low Dat Pro Fac Upp Upp Zhi Pro Fac Was Fac Arm Lab Res Qua Res Tes Frg Turns Passed 27127 | 461 2708 1383 2540 1238 707 231 699 1940 1071 3328 261 164 349 542 348 22 923 1007 74 197 207 437 773 80 227 405 2 462 289 354 175 3523 Spaces Moved 26079 | 244 855 543 1189 695 442 102 285 819 452 1280 612 375 835 627 568 77 314 2322 253 246 162 615 2033 219 655 1211 9 1246 658 584 509 5043 Core 6 | 2 . . . . . . . 1 . . . . . . . . . . . . . . . . . 1 . . . . . 2 Treads 4447 | 242 855 543 1189 695 442 102 285 94 . . . . . . . . . . . . . . . . . . . . . . . . Legs 2456 | . . . . . . . . 724 452 1280 . . . . . . . . . . . . . . . . . . . . . . Wheels . | . . . . . . . . . . . . . . . . . . . . . . . . . . . . . . . . . Hover 2033 | . . . . . . . . . . . . . . . . . . . . . . . . . . . . . . . . 2033 Flight 17137 | . . . . . . . . . . . 612 375 835 627 568 77 314 2322 253 246 162 615 2033 219 655 1210 9 1246 658 584 509 3008 Fastest Speed 11 | 50 160 240 160 160 160 160 155 156 190 260 28 28 28 28 28 28 28 26 29 29 27 17 11 24 11 14 23 14 15 16 21 12 Average Speed 77 | 159 278 240 174 160 160 160 179 197 223 260 28 28 30 30 28 28 28 29 29 29 28 26 25 24 23 23 23 23 24 34 27 35 Slowest Speed 1450 | 160 320 240 240 160 160 240 240 1450 260 260 98 28 101 34 28 28 31 104 29 29 29 27 27 24 24 700 23 26 26 109 28 205 Overloaded Moves 488 | . . . . . . . . . . . . . . . . . . 31 . . . 34 12 . 11 53 . 92 36 35 15 169 Propulsion Burnouts 1 | . . . . . . . . . . . . . . . . . . . . . . . . . . . . . . . . 1 Robots Hopped 37 | . . . . . . . . . . . 2 . . . . . 2 . . . . . . . 2 . . 9 5 8 3 6 Potential Cave-ins 4 | . . . . . . . . . . . . . . . . . . . . . . . 3 . . . . . . . . 1 Cave-ins Triggered . | . . . . . . . . . . . . . . . . . . . . . . . . . . . . . . . . . Teleports 2 | . . . . . . . . . . . . . . . . . . . . . . . . . . 1 . . . . . 1 Exploration Rate (%) 59 | 11 96 96 91 99 89 25 28 86 97 83 18 94 30 72 63 68 50 55 45 34 60 59 59 89 23 61 5 32 67 31 62 77 Regions Visited 32 Branch Regions 20 Pre-discovered Areas 15 | . 2 1 . . 1 . . 2 3 . 1 . . . . 1 . . . 1 3 . . . . . . . . . . . Known Exits Taken 24 | . 1 1 1 . . 1 1 1 . 1 . . 1 1 1 1 1 1 1 1 1 1 . . 1 1 1 1 1 1 1 . Unknown Exits Taken 4 | 1 . . . 1 1 . . . 1 . . . . . . . . . . . . . . . . . . . . . . . Scrap Searched 24 | . . 2 . 1 . . . . . 6 . . . 9 2 . 1 . 1 1 . 1 . . . . . . . . . . Spaces Dug 285 | . . . . 29 . . . 1 . . 3 . 44 2 32 . 2 32 . . . 3 32 1 17 11 . 30 19 12 3 12 Terrain Destroyed 549 | . . 37 25 61 . . 19 16 . . 11 . 55 2 49 . 2 32 . . . 3 40 1 18 12 . 37 41 39 5 44 Melee 126 | . . . . . . . . 1 . . 3 . 12 2 2 . 2 25 . . . 3 28 1 15 8 . 19 . . . 5 Projectile 156 | . . . . 4 . . . . . . . . . . . . . . . . . . 12 . 3 4 . 18 41 39 5 30 AOE 258 | . . 37 25 57 . . 19 15 . . 8 . 43 . 47 . . 7 . . . . . . . . . . . . . . Terrain Rammed . | . . . . . . . . . . . . . . . . . . . . . . . . . . . . . . . . . Walls Destroyed . | . . . . . . . . . . . . . . . . . . . . . . . . . . . . . . . . . Machines Disabled . | . . . . . . . . . . . . . . . . . . . . . . . . . . . . . . . . . Actions | -11 -10 -10 -9 -9 -9 -8 -8 -8 -8 -8 -6 -6 -6 -6 -6 -6 -5 -5 -5 -5 -5 -4 -4 -4 -4 -4 -4 -3 -3 -2 -2 -2 --------- Run | Yrd Mat Min Mat Min Exi Min Mat Sto Rec Scr Fac Was Fac Low Low Dat Pro Fac Upp Upp Zhi Pro Fac Was Fac Arm Lab Res Qua Res Tes Frg Total 31524 | 277 1033 585 1467 753 442 130 385 1005 497 1283 694 433 902 967 744 76 1141 2595 252 370 315 884 2192 244 685 1318 8 1352 729 684 528 6554 Wait 3509 | . 41 1 96 7 . . 30 14 . . 39 59 6 331 165 . 821 185 . 125 128 267 41 24 5 46 . 55 12 64 1 946 Move 25983 | 243 854 542 1188 694 441 101 284 818 451 1279 609 374 834 626 567 76 310 2321 252 245 161 614 2033 218 651 1210 8 1227 648 568 502 5034 Hop 29 | . . . . . . . . . . . 1 . . . . . 1 . . . . . . . 1 . . 9 4 7 3 3 Pick Up 201 | 4 31 5 21 1 1 . 8 23 3 2 8 . 6 1 . . 3 7 . . 3 . 12 1 . 10 . 1 2 . 1 47 Fast Attach 127 | 7 . 1 4 1 . 1 6 7 1 . 1 . 3 2 . . 1 10 . . 4 . 2 . . 4 . 2 4 5 6 55 Attach 93 | . 4 2 3 4 . 2 . 3 . . 13 . 1 . . . . 6 . . . . 5 . . 2 . 2 . . 1 45 Detach 38 | . . . . . . . . . . . 1 . . . . . . 4 . . 1 . . . . . . . . . 3 29 Swap 117 | . 6 6 16 5 . 1 6 12 1 . 2 . 8 1 2 . . 6 . . 6 . 12 . 3 4 . 5 1 . 1 13 Drop 222 | . 17 2 28 . . . 5 19 3 2 13 . 9 2 1 . 3 13 . . 7 . 15 . . 14 . 3 5 1 . 60 Fire 742 | 16 76 23 99 34 . 17 43 94 14 . 1 . 4 . 7 . . 1 . . . . 12 . 3 4 . 28 53 39 10 164 Melee 226 | . . . . . . . . 8 . . 6 . 16 4 2 . 2 35 . . 5 3 60 1 22 11 . 20 . . . 31 Ram 1 | . . . . . . . . . . . . . . . . . . . . . . . . . . . . . . . . 1 Kick 7 | . . . . . . . . 6 1 . . . . . . . . . . . . . . . . . . . . . . . Crush 45 | 7 4 3 12 7 . 8 3 1 . . . . . . . . . . . . . . . . . . . . . . . . Escape Stasis 96 | . . . . . . . . . . . . . 15 . . . . 7 . . . . . . . . . . . . . 74 Rewire 36 | . . . . . . . . . 23 . . . . . . . . . . . . . . . . 13 . . . . . . Trap . | . . . . . . . . . . . . . . . . . . . . . . . . . . . . . . . . . Miscellaneous 52 | . . . . . . . . . . . . . . . . . . . . . . . . . . . . . . . . 52 Route ------- -11/Scrapyard -10/Materials (discovered 6 exits: *Mat x3 / *Min x2 / Sub) -10/Mines (discovered 3 exits: *Mat x2 / *Sub) -9/Materials (discovered 4 exits: *Mat x3 / *Min) -9/Mines (discovered 4 exits: *Mat x2 / *Exi / [*Zio]) -9/Exiles (discovered 2 exits: [*Min x2]) -8/Mines (discovered 2 exits: *Mat x2) -8/Materials (discovered 3 exits: *Fac / *Sto x2) -8/Storage (discovered 2 exits: Fac / *Rec) -8/Recycling (discovered 2 exits: *Fac / *Scr) -8/Scraptown (discovered 2 exits: *Fac x2) -6/Factory (discovered 4 exits: Fac x2 / Low x2) -6/Waste -6/Factory (discovered 3 exits: *Fac / *Low x2) -6/Lower Caves -6/Lower Caves -6/Data Miner -5/Proximity Caves -5/Factory (discovered 6 exits: *Fac x4 / *Upp x2) -5/Upper Caves -5/Upper Caves -5/Zhirov -4/Proximity Caves -4/Factory (discovered 9 exits: *Res x4 / Upp x2 / Ext x2 / Arm) -4/Waste -4/Factory (discovered 6 exits: *Res / *Upp x2 / Ext x2 / *Arm) -4/Armory (discovered 2 exits: *Res / *Lab) -4/Lab -3/Research (discovered 5 exits: *Res x3 / *Qua x2) -3/Quarantine -2/Research (discovered 3 exits: *Acc / *Tes x2) -2/Testing (discovered 2 exits: [*Sec] / *Frg) -2/Protoforge (discovered 1 exit: *Acc) History --------- Turn | Location | Event 12 | -11/Scrapyard | Discovered new exit (range 15) 462 | -11/Scrapyard | Entered Materials 463 | -10/Materials | Build established: Mutant 721 | -10/Materials | Discovered new exit (range 15) 963 | -10/Materials | Discovered new exit (range 7) 1325 | -10/Materials | Central database locked down 1367 | -10/Materials | Discovered new exit (range 8) 2281 | -10/Materials | Learned location of Mines (-9) 2353 | -10/Materials | Identified exit to Materials 2468 | -10/Materials | Learned 2 Mines zone layouts 2510 | -10/Materials | Learned 4 Subcaves zone layouts 2542 | -10/Materials | Learned 4 Recycling zone layouts 2565 | -10/Materials | Learned 2 Mines zone layouts 2600 | -10/Materials | Identified exit to Mines 2600 | -10/Materials | Identified exit to Subcaves 2600 | -10/Materials | Learned location of 1 exit from Materials 2705 | -10/Materials | Learned location of Mines (-10) 2775 | -10/Materials | Learned 2 Mines zone layouts 3004 | -10/Materials | Lost 3 parts (1p1n1u) 3170 | -10/Materials | Entered Mines 3500 | -10/Mines | Found a hidden stash of uninstalled traps 3822 | -10/Mines | Learned location of Zion (-7) 3846 | -10/Mines | Discovered exit to Subcaves (range 9) 4310 | -10/Mines | Excavation squad dispatched 4310 | -10/Mines | A large section of the Mines collapsed 4553 | -10/Mines | Entered Materials 4553 | -9/Materials | Evolved 2 slots: Propulsion x1, Utility x1 4554 | -9/Materials | Identified exit to Materials 4647 | -9/Materials | Discovered new exit (range 15) 4724 | -9/Materials | Identified exit to Mines 5065 | -9/Materials | Repaired Imp. Treads 5099 | -9/Materials | Repaired Imp. Treads 5760 | -9/Materials | Discovered exit to Materials (range 16) 6334 | -9/Materials | Discovered exit to Materials (range 10) 6546 | -9/Materials | Destroyed 9 combat bots 6692 | -9/Materials | Learned location of 1 exit from Storage 6751 | -9/Materials | Learned 2 Storage zone layouts 6800 | -9/Materials | Learned 2 Storage zone layouts 6881 | -9/Materials | Learned Storage trap positions 6943 | -9/Materials | Learned Storage machine intel 6953 | -9/Materials | First assault squad dispatched 7093 | -9/Materials | Entered Mines 7223 | -9/Mines | Assisted by bots powering up and referring to "LRC-V3" 7385 | -9/Mines | Assembled infested the area 7523 | -9/Mines | Lost 4 parts (3n1u) 7531 | -9/Mines | Destroyed 11 combat bots 7646 | -9/Mines | Learned Materials garrison access intel 7859 | -9/Mines | Deemed a non-threat by the Exiles lab entrance 7886 | -9/Mines | Found a damaged Exp. Sensor Array with a note attached 7890 | -9/Mines | Found Prototype Device 7891 | -9/Mines | Identified Exp. Sensor Array 8007 | -9/Mines | A Derelict revealed a hidden shortcut to a safe place 8325 | -9/Mines | Discovered new exit (range 5) 8331 | -9/Mines | Entered Exiles 8352 | -9/Exiles | Discovered new exit (range 15) 8371 | -9/Exiles | Met 8R-AWN 8397 | -9/Exiles | Met EX-HEX 8459 | -9/Exiles | Met EX-DEC 8528 | -9/Exiles | Met EX-BIN 8779 | -9/Exiles | Visited The Gauntlet 9019 | -9/Exiles | Discovered new exit (range 11) 9038 | -9/Exiles | Entered Mines 9043 | -8/Mines | Core integrity fell below 50% 9256 | -8/Mines | Core integrity fell below 20% 9269 | -8/Mines | Entered Materials 9269 | -8/Materials | Evolved 2 slots: Propulsion x1, Utility x1 9270 | -8/Materials | Identified exit to Storage 9271 | -8/Materials | Loaded intel: 1 garrison access location 9649 | -8/Materials | Discovered new exit (range 5) 9716 | -8/Materials | Repaired Lgt. Treads 9768 | -8/Materials | Discovered exit to Storage (range 6) 9968 | -8/Materials | Entered Storage 9969 | -8/Storage | Identified exit to Recycling 9970 | -8/Storage | Identified exit to Factory 9972 | -8/Storage | Loaded intel: 9 trap records 9973 | -8/Storage | Loaded intel: 55 machine locations 10070 | -8/Storage | Met a pair of Derelict thieves 10265 | -8/Storage | Destroyed 12 combat bots 10267 | -8/Storage | Lost 7 parts (1p3n1u2w) 10530 | -8/Storage | Build established: Scavenger-Mutant 10683 | -8/Storage | Used back door to open Recycling access 10961 | -8/Storage | Learned location of Extension (-4) 11037 | -8/Storage | Learned 2 Storage zone layouts 11060 | -8/Storage | Learned location of 2 exits from Factory 11074 | -8/Storage | Learned Factory trap positions 11083 | -8/Storage | Learned location of Recycling (-8) 11103 | -8/Storage | Learned Factory stockpile data 11133 | -8/Storage | Learned location of 1 exit from Lower Caves 11171 | -8/Storage | Learned location of 1 exit from Extension 11908 | -8/Storage | Entered Recycling 11909 | -8/Recycling | Identified exit to Factory 12386 | -8/Recycling | Core integrity fell below 50% 12878 | -8/Recycling | Scanned before Scraplab entrance 12914 | -8/Recycling | Entered Scraplab 12924 | -8/Recycling | Loaded intel: 3 recycling unit locations 12935 | -8/Recycling | Discovered new exit (range 2) 12979 | -8/Recycling | Entered Scraptown 12979 | -8/Scraptown | Accompanied by 2 allies 13232 | -8/Scraptown | Visited UFD Registry 13232 | -8/Scraptown | Registered with UFD as "Wrenchfunk" 13297 | -8/Scraptown | Visited Chapter 10 13336 | -8/Scraptown | Visited Abandonware Association 13364 | -8/Scraptown | Learned abandonware demo "TRNCOAT.EXE" 13364 | -8/Scraptown | Learned abandonware demo "REBOOT5.EXE" 13523 | -8/Scraptown | Visited Science Guys 13606 | -8/Scraptown | Visited Supply Room 13642 | -8/Scraptown | Visited Junk Repository 13732 | -8/Scraptown | Visited Supply Room 13779 | -8/Scraptown | Visited Scrap Suit Storage 14445 | -8/Scraptown | Heard Great Nut preacher, LISTEN AND RECITE! 14476 | -8/Scraptown | Discovered exit to Factory (range 9) 15124 | -8/Scraptown | Visited Cyclists 15168 | -8/Scraptown | Visited Awakened 15298 | -8/Scraptown | Visited Bundlers 16000 | -8/Scraptown | Discovered exit to Factory (range 5) 16169 | -8/Scraptown | Met Optimus 16169 | -8/Scraptown | Accepted into 0bPrime 16307 | -8/Scraptown | Entered Factory 16307 | -6/Factory | Accompanied by 2 allies 16307 | -6/Factory | Evolved 4 slots: Propulsion x1, Utility x3 16308 | -6/Factory | Identified exit to Lower Caves 16309 | -6/Factory | Identified exit to Factory 16310 | -6/Factory | Loaded intel: 84 trap records 16351 | -6/Factory | Loaded intel: 8 recycling unit locations 16439 | -6/Factory | Learned location of Protoforge (-2) 16568 | -6/Factory | Manually triggered Chute Trap 16568 | -6/Factory | Sucked down chute 16568 | -6/Factory | Entered Waste 16571 | -6/Waste | Spotted C-40 Crusher 16572 | -6/Waste | Spotted C-40 Crusher 16595 | -6/Waste | Spotted C-40 Crusher 16595 | -6/Waste | Spotted C-40 Crusher 16601 | -6/Waste | Build established: Hacker-Scout 16601 | -6/Waste | Spotted C-40 Crusher 16637 | -6/Waste | Warlord forces began an assault 16656 | -6/Waste | Allies destroyed C-40 Crusher 16663 | -6/Waste | Allies destroyed C-40 Crusher 16665 | -6/Waste | Allies destroyed C-40 Crusher 16666 | -6/Waste | Spotted C-40 Crusher 16672 | -6/Waste | Allies destroyed C-40 Crusher 16674 | -6/Waste | Allies destroyed C-40 Crusher 16702 | -6/Waste | Lost 4 allies 16704 | -6/Waste | Discovered new exit (range 13) 16732 | -6/Waste | Identified exit to Factory 16732 | -6/Waste | Entered Factory 16732 | -6/Factory | Accompanied by 1 ally 16898 | -6/Factory | Loaded intel: 8 recycling unit locations 17016 | -6/Factory | Discovered exit to Factory (range 5) 17081 | -6/Factory | Entered Lower Caves 17082 | -6/Lower Caves | Identified exit to Lower Caves 17558 | -6/Lower Caves | Spotted B-75 Beast 17574 | -6/Lower Caves | Learned location of 1 exit from Factory 17623 | -6/Lower Caves | Entered another Lower Caves area 17652 | -6/Lower Caves | Learned 4 Factory zone layouts 17708 | -6/Lower Caves | Learned Factory stockpile data 17965 | -6/Lower Caves | Discovered new exit (range 16) 17971 | -6/Lower Caves | Identified exit to Data Miner 17971 | -6/Lower Caves | Entered Data Miner 17971 | -6/Data Miner | Discovered new exit (range 6) 17977 | -6/Data Miner | Met Data Miner 17984 | -6/Data Miner | Learned location of Section 7 (-2) 17984 | -6/Data Miner | Acquired the access code to Warlord's prototype stash 17987 | -6/Data Miner | Received God Mode back door access code from Data Miner 17993 | -6/Data Miner | Identified exit to Proximity Caves 17993 | -6/Data Miner | Entered Proximity Caves 18237 | -5/Proximity Caves | Build established: Hacker-Sprinter 18800 | -5/Proximity Caves | Attracted the attention of an 0b10 outpost 18804 | -5/Proximity Caves | Attracted the attention of an 0b10 checkpoint 18888 | -5/Proximity Caves | Learned Factory emergency access door positions 18912 | -5/Proximity Caves | Discovered exit to Factory (range 12) 18916 | -5/Proximity Caves | Entered Factory 18916 | -5/Factory | Evolved 2 slots: Utility x2 18917 | -5/Factory | Identified exit to Factory 18955 | -5/Factory | Identified exit to Upper Caves 18979 | -5/Factory | Loaded intel: 8 recycling unit locations 19028 | -5/Factory | Spotted B-75 Beast 19091 | -5/Factory | Central database locked down 19121 | -5/Factory | Discovered exit to Factory (range 7) 19182 | -5/Factory | Build established: Wizard-Sprinter 19398 | -5/Factory | Fabricated Cld. VTOL Module (x1) 19411 | -5/Factory | Discovered exit to Factory (range 15) 19450 | -5/Factory | Found Prototype Processor 19450 | -5/Factory | Identified Exp. Targeting Computer 19502 | -5/Factory | Found Prototype Launcher 19502 | -5/Factory | Identified Scatter Rocket Array 19834 | -5/Factory | Build established: Wizard-Scout 19923 | -5/Factory | Entered Upper Caves 19946 | -5/Upper Caves | Learned 4 Factory zone layouts 19953 | -5/Upper Caves | Identified exit to Upper Caves 19997 | -5/Upper Caves | Entered another Upper Caves area 20048 | -5/Upper Caves | Learned location of Armory (-4) 20184 | -5/Upper Caves | Attracted the attention of an 0b10 checkpoint 20190 | -5/Upper Caves | Discovered new exit (range 12) 20193 | -5/Upper Caves | Identified exit to Zhirov 20194 | -5/Upper Caves | Entered Zhirov 20194 | -5/Zhirov | Discovered new exit (range 3) 20200 | -5/Zhirov | Met Zhirov 20205 | -5/Zhirov | Learned location of Testing (-2) 20205 | -5/Zhirov | Learned location of Command (-1) 20208 | -5/Zhirov | Zhirov requested help retrieving the SGEMP Prototype 20212 | -5/Zhirov | Found Alien Artifact 20212 | -5/Zhirov | Identified Integrated Dissipator 20212 | -5/Zhirov | Installed Integrated Dissipator, increased core heat dissipation (+20) 20218 | -5/Zhirov | Found Alien Artifact 20401 | -5/Zhirov | Identified exit to Proximity Caves 20401 | -5/Zhirov | Entered Proximity Caves 20441 | -4/Proximity Caves | Learned Research emergency access door positions 20446 | -4/Proximity Caves | Learned 12 Research zone layouts 20484 | -4/Proximity Caves | Build established: Hacker-Scout 20834 | -4/Proximity Caves | Discovered exit to Factory (range 10) 20838 | -4/Proximity Caves | Entered Factory 20838 | -4/Factory | Evolved 2 slots: Propulsion x1, Utility x1 20839 | -4/Factory | Identified exit to Research 20864 | -4/Factory | Loaded intel: 8 recycling unit locations 20872 | -4/Factory | Spotted B-86 Titan 21136 | -4/Factory | Build established: Wizard-Scout 21211 | -4/Factory | Identified exit to Upper Caves 21211 | -4/Factory | Identified exit to Extension 21211 | -4/Factory | Identified exit to Armory 21216 | -4/Factory | Found Exp. Signal Interpreter 21555 | -4/Factory | Spotted B-86 Titan 21588 | -4/Factory | Search patrols dispatched 21611 | -4/Factory | Manually triggered Chute Trap 21611 | -4/Factory | Sucked down chute 21611 | -4/Factory | Entered Waste 21611 | -4/Waste | Spotted C-40 Crusher 21619 | -4/Waste | Spotted C-40 Crusher 21626 | -4/Waste | EMP discharged 21627 | -4/Waste | Met Warlord forces unprepared to attack 21643 | -4/Waste | Allies destroyed C-40 Crusher 21658 | -4/Waste | Spotted C-40 Crusher 21658 | -4/Waste | Spotted C-40 Crusher 21663 | -4/Waste | Spotted C-40 Crusher 21668 | -4/Waste | Allies destroyed C-40 Crusher 21671 | -4/Waste | Allies destroyed C-40 Crusher 21677 | -4/Waste | Spotted C-40 Crusher 21681 | -4/Waste | Allies destroyed C-40 Crusher 21686 | -4/Waste | Discovered new exit (range 13) 21691 | -4/Waste | Identified exit to Factory 21691 | -4/Waste | Entered Factory 21709 | -4/Factory | Discovered exit to Research (range 4) 21712 | -4/Factory | Lost 9 allies 21851 | -4/Factory | P-70 Sage assimilated allied Administrator 7a 21905 | -4/Factory | Build established: Hacker-Scout 21918 | -4/Factory | Entered Armory 22168 | -4/Armory | Search patrols dispatched 22175 | -4/Armory | Identified Transdimensional Reconstructor 22175 | -4/Armory | Warped through subspace to slip node 22175 | -4/Armory | Discovered new exit (range 1) 22175 | -4/Armory | Identified exit to Lab 22191 | -4/Armory | Assisted by bots powering up and referring to "LRC-V3" 22197 | -4/Armory | Discovered exit to Research (range 4) 22221 | -4/Armory | Spotted B-86 Titan 22315 | -4/Armory | Allies destroyed B-86 Titan 22323 | -4/Armory | Entered Lab 22323 | -4/Lab | Discovered exit to Research (range 9) 22325 | -4/Lab | Entered Research 22325 | -3/Research | Evolved 2 slots: Power x1, Utility x1 22329 | -3/Research | Loaded intel: 5 recycling unit locations 22351 | -3/Research | Lost 3 allies 22469 | -3/Research | Central database locked down 22473 | -3/Research | Spotted B-86 Titan 22504 | -3/Research | Spotted B-86 Titan 22546 | -3/Research | Identified exit to Research 22546 | -3/Research | Identified exit to Quarantine 22586 | -3/Research | Lost 3 parts (1n1u1w) 22618 | -3/Research | Spotted B-90 Cyclops 22787 | -3/Research | Entered Quarantine 22944 | -3/Quarantine | Found Alien Artifact 22951 | -3/Quarantine | Found Alien Artifact 23008 | -3/Quarantine | Discovered exit to Research (range 9) 23020 | -3/Quarantine | Found Adv. Powered Armor 23076 | -3/Quarantine | Entered Research 23076 | -2/Research | Evolved 2 slots: Propulsion x2 23141 | -2/Research | Repaired Lrn. Sensor Array 23175 | -2/Research | Identified exit to Testing 23324 | -2/Research | Discovered new exit (range 10) 23335 | -2/Research | Identified exit to Access 23365 | -2/Research | Lost 4 parts (4u) 23366 | -2/Research | Spotted B-90 Cyclops 23378 | -2/Research | Incoming investigation squad redirected 23421 | -2/Research | Lost 4 parts (2n1u1w) 23430 | -2/Research | Entered Testing 23439 | -2/Testing | Found Prototype Energy Cannon 23439 | -2/Testing | Identified Cld. Nova Cannon 23452 | -2/Testing | Found Prototype Ballistic Cannon 23452 | -2/Testing | Identified Perforator 23572 | -2/Testing | Found Prototype Hackware 23572 | -2/Testing | Identified System Mapper 23583 | -2/Testing | Spotted Fortress 23603 | -2/Testing | Discovered new exit (range 6) 23603 | -2/Testing | Discovered new exit (range 6) 23604 | -2/Testing | Identified exit to Protoforge 23605 | -2/Testing | Entered Protoforge 23605 | -2/Protoforge | Spotted Hotshot 23622 | -2/Protoforge | Superfortress began startup sequence 23656 | -2/Protoforge | Spotted Hotshot 23656 | -2/Protoforge | Spotted Hotshot 23662 | -2/Protoforge | Spotted Hotshot 23676 | -2/Protoforge | Found Prototype Launcher 23676 | -2/Protoforge | Identified Cep. Concussive Dispersal Blaster 23890 | -2/Protoforge | Spotted EXE-6 23896 | -2/Protoforge | Spotted EXE-6 23931 | -2/Protoforge | Spotted Decapitator 23946 | -2/Protoforge | UFD initiated attack on Protoforge 23946 | -2/Protoforge | Loaded intel: 3 recycling unit locations 23951 | -2/Protoforge | Lost 7 parts (1p4n2u) 23982 | -2/Protoforge | Optimus greeted in Protoforge 24007 | -2/Protoforge | Found Prototype Processor 24007 | -2/Protoforge | Identified Exp. Armor Integrity Analyzer 24073 | -2/Protoforge | Lost 4 allies 24079 | -2/Protoforge | Found Prototype Slashing Weapon 24079 | -2/Protoforge | Identified Exp. Terror Saw 24086 | -2/Protoforge | Found Prototype Processor 24086 | -2/Protoforge | Identified Exp. Core Analyzer 24090 | -2/Protoforge | Found Exp. Armor Integrity Analyzer 24097 | -2/Protoforge | Met 7R-MNS 24127 | -2/Protoforge | Lost 5 allies 24326 | -2/Protoforge | Optimus attacked Superfortress 24327 | -2/Protoforge | Spotted Striker 24348 | -2/Protoforge | Found Prototype Protection 24348 | -2/Protoforge | Identified Centrium Heavy Armor Plating 24353 | -2/Protoforge | Spotted Executioner 24364 | -2/Protoforge | Lost 9 allies 24415 | -2/Protoforge | Spotted Executioner 24484 | -2/Protoforge | Spotted Striker 24499 | -2/Protoforge | Spotted Decapitator 24500 | -2/Protoforge | Spotted Decapitator 24501 | -2/Protoforge | Spotted Decapitator 24501 | -2/Protoforge | Spotted Decapitator 24502 | -2/Protoforge | Destroyed Decapitator 24502 | -2/Protoforge | Destroyed Decapitator 24505 | -2/Protoforge | Destroyed Decapitator 24514 | -2/Protoforge | Destroyed Decapitator 24514 | -2/Protoforge | Spotted Striker 24517 | -2/Protoforge | Spotted Executioner 24522 | -2/Protoforge | Spotted Immortal 24523 | -2/Protoforge | Spotted Immortal 24535 | -2/Protoforge | Identified Hpw. Transdimensional Reconstructor 24535 | -2/Protoforge | Warped through subspace 24535 | -2/Protoforge | Spotted Striker 24535 | -2/Protoforge | Spotted Striker 24599 | -2/Protoforge | Build established: Scavenger-Scout 24657 | -2/Protoforge | Spotted Executioner 24659 | -2/Protoforge | Spotted Executioner 24659 | -2/Protoforge | Spotted Executioner 24662 | -2/Protoforge | UFD reported confirmed Drillbomb installation 24662 | -2/Protoforge | Spotted Immortal 24664 | -2/Protoforge | Spotted Immortal 24708 | -2/Protoforge | Spotted Executioner 24711 | -2/Protoforge | Spotted Striker 24727 | -2/Protoforge | Spotted Striker 24770 | -2/Protoforge | Lost 5 allies 24783 | -2/Protoforge | Forge Plexus network access discovered 24789 | -2/Protoforge | Spotted Striker 24792 | -2/Protoforge | Spotted Striker 24854 | -2/Protoforge | Scanned by Researcher 24864 | -2/Protoforge | Spotted V832-q 24865 | -2/Protoforge | Spotted V602-t 24867 | -2/Protoforge | Found Faulty Cep. Deflector Sword 24869 | -2/Protoforge | Found Cep. Plasma Driver 24877 | -2/Protoforge | Spotted V205-u 24878 | -2/Protoforge | Found Cep. Miniperforator 24890 | -2/Protoforge | Found Faulty Cep. Deflector Sword 25083 | -2/Protoforge | Spotted Decapitator 25083 | -2/Protoforge | Spotted Decapitator 25086 | -2/Protoforge | Destroyed Decapitator 25096 | -2/Protoforge | Destroyed Decapitator 25169 | -2/Protoforge | Spotted V029-h 25169 | -2/Protoforge | Spotted V738-n 25169 | -2/Protoforge | Spotted V874-e 25169 | -2/Protoforge | Spotted V662-v 25178 | -2/Protoforge | Found Cep. Antigrav Storage Unit 25183 | -2/Protoforge | Found Cep. NT7 Matterbank 25185 | -2/Protoforge | Found Cep. Chromion Battery 25216 | -2/Protoforge | Found Crosscalibrator 25300 | -2/Protoforge | Spotted Immortal 25300 | -2/Protoforge | Spotted Immortal 25383 | -2/Protoforge | Found Femtoactuators 25387 | -2/Protoforge | Found Cep. Melee Reflex Suite 25393 | -2/Protoforge | Found Femtoactuators 25418 | -2/Protoforge | Found Cep. Weapon Articulator 25420 | -2/Protoforge | Found Cep. Weapon Articulator 25445 | -2/Protoforge | Build established: Scavenger-Skirmisher 25471 | -2/Protoforge | Found Cep. Zero-point Core 25480 | -2/Protoforge | Found Cep. Zero-point Core 25567 | -2/Protoforge | Destroyed Immortal 25606 | -2/Protoforge | Destroyed Immortal 25816 | -2/Protoforge | Spotted Executioner 25816 | -2/Protoforge | Spotted Striker 25828 | -2/Protoforge | Destroyed Executioner 25830 | -2/Protoforge | Destroyed Striker 25838 | -2/Protoforge | Spotted Executioner 25857 | -2/Protoforge | Spotted Executioner 25873 | -2/Protoforge | Core integrity fell below 50% 25910 | -2/Protoforge | Lost 10 parts (2p4n3u1w) 25935 | -2/Protoforge | UFD reported confirmed Drillbomb installation 25974 | -2/Protoforge | UFD reported confirmed Drillbomb installation 26044 | -2/Protoforge | Lost 3 allies 26066 | -2/Protoforge | Found Exp. Core Analyzer 26224 | -2/Protoforge | Found Cep. Plasma Driver 26241 | -2/Protoforge | Spotted Decapitator 26241 | -2/Protoforge | Spotted Decapitator 26241 | -2/Protoforge | Spotted Decapitator 26241 | -2/Protoforge | Spotted Decapitator 26247 | -2/Protoforge | Destroyed Decapitator 26250 | -2/Protoforge | Destroyed Decapitator 26257 | -2/Protoforge | Destroyed Decapitator 26257 | -2/Protoforge | Destroyed Decapitator 26277 | -2/Protoforge | System corruption reached 10% 26291 | -2/Protoforge | Found Faulty Cep. Projectile Intercept Suite 26293 | -2/Protoforge | Found Cep. Core Shell 26299 | -2/Protoforge | Spotted V329-o 26304 | -2/Protoforge | Found Cep. Projectile Intercept Suite 26405 | -2/Protoforge | Found Cep. Combat Aerolev Unit 26461 | -2/Protoforge | Spotted AP7-3 26463 | -2/Protoforge | Spotted AP7-3 26527 | -2/Protoforge | Spotted Executioner 26561 | -2/Protoforge | Spotted Striker 26573 | -2/Protoforge | Spotted Striker 26573 | -2/Protoforge | Spotted Striker 26588 | -2/Protoforge | Spotted Striker 26637 | -2/Protoforge | Spotted Striker 26663 | -2/Protoforge | Spotted Striker 26680 | -2/Protoforge | Spotted Striker 26705 | -2/Protoforge | Build established: Scavenger-Sprinter 26766 | -2/Protoforge | Found UFD Drillbomb 26814 | -2/Protoforge | Spotted Striker 26836 | -2/Protoforge | Installed UFD Drillbomb at designated target 26836 | -2/Protoforge | UFD reported confirmed Drillbomb installation 26848 | -2/Protoforge | Found UFD Drillbomb 26852 | -2/Protoforge | Spotted Executioner 26862 | -2/Protoforge | Spotted Executioner 26889 | -2/Protoforge | Installed UFD Drillbomb at designated target 26889 | -2/Protoforge | UFD reported confirmed Drillbomb installation 26890 | -2/Protoforge | Lost 3 allies 26894 | -2/Protoforge | Found UFD Drillbomb 26909 | -2/Protoforge | Installed UFD Drillbomb at designated target 26909 | -2/Protoforge | UFD reported confirmed Drillbomb installation 26915 | -2/Protoforge | Found UFD Drillbomb 26940 | -2/Protoforge | Spotted Striker 26988 | -2/Protoforge | Installed UFD Drillbomb at designated target 26988 | -2/Protoforge | UFD reported confirmed Drillbomb installation 26989 | -2/Protoforge | Found UFD Drillbomb 27033 | -2/Protoforge | Installed UFD Drillbomb at designated target 27033 | -2/Protoforge | UFD reported confirmed Drillbomb installation 27054 | -2/Protoforge | Found UFD Drillbomb 27060 | -2/Protoforge | Spotted Executioner 27096 | -2/Protoforge | Spotted Executioner 27096 | -2/Protoforge | Spotted Executioner 27096 | -2/Protoforge | Spotted Executioner 27096 | -2/Protoforge | Spotted Executioner 27097 | -2/Protoforge | Core integrity fell below 20% 27107 | -2/Protoforge | Spotted Executioner 27108 | -2/Protoforge | Spotted Executioner 27108 | -2/Protoforge | Spotted Executioner 27121 | -2/Protoforge | Found UFD Drillbomb 27128 | -2/Protoforge | Released all parts (9) 27128 | -2/Protoforge | Destroyed by Executioner with Helical Railgun Last Messages --------------- 27128_ Cep. Antigrav Storage Unit crushed and broken. 27128_ UFD Drillbomb crushed and broken. 27128_ Exp. Biomechanical Wings crushed and broken. 27128_ Lrg. Storage Unit crushed and broken. 27128_ Exp. Surge Thruster crushed and broken. 27128_ Exp. Biomechanical Wings crushed and broken. 27128_ Cep. Zero-point Core crushed and broken. 27128_ Cep. NT7 Matterbank crushed and broken. 27128_ Femtoactuators crushed and broken. 27128_ Cep. Chromion Battery crushed and broken. 27128_ Exp. Surge Thruster crushed and broken. 27128_ Cep. Plasma Driver crushed and broken. 27128_ Released Exp. Optical Array. 27128_ Released Exp. Armor Integrity Analyzer. 27128_ Released Adv. Melee Analysis Suite. 27128_ Released Cep. Projectile Intercept Suite. [Achievement: Live, Flee, And Rebuild] Map ----- +----------------------------------------------------+ | #### ?? ##?#####?##???# " " "" """" | | #### ?? #? ???#?##???# "" | | #" # ??#?##???# "" " | | #"T " " # ???#?##???# """"" " " | | #" * """ " ??????##???# " " | | #"%!% """" # ????#?##???# " " "" " | | !"""!=* [" = " ?????#?##???# """"" "" | | *[*%!!%*=[**[!########?##???# " "" | | %!!%[!=%!%[%!=%* ##### "#???# """" "" | | %%![%%% %=|!!!%!#""##### ##???# """ "" | | " ]%* %*==!!% #?? ##???# " | | !*!"%= =* #### "####???# "" " | | ==!|%!%[%!!! ## #####???# " | | /]!!!%%!%![! # # ##???# % " "" " | | /[=%%=%!==*!!# ##"# # #???# " %" "" | | * %[=%=*!%!=!"#!# # ; ####?# " "!* "" | | !!!![=%== [!!%%=!; # # # #?# " "=% "" "" | | !=%! [! !*[%%" ; ; # #?# [ % "" " """ | | % =[|%! %!|!!=[; ; ### =[ % "" " """ | | *!% % !!** *%; | ## =%" """ | | %"!! *! %% %!! #s =!! # # " """ | | % =%!] % % % &%[*[= [;!!%*==*# % """ | | ! = % % %%[!*[!*!! =# % """ | | % =[*%= %% |%%!!]=*!%%[%!=# """ " """ | | =[ % % %% &%!!=!==**!=*=# %"" " " """ | | % %% %% %% %%!%%%=!%*%%@%![%#% %"" %! " """ | | %%%]%%%%%%%%%%%%%[!%%%%%%E%E=[%%%&%% %= " "" | | %%%%% %&%%=%%=%%%%%%%%&ss%%%%%%%%%&= % % "" | | %!%%=!%%%&%%%=!=&%%%%%%%%%A%n%%%%*%=" "%" "" "" | | %% * %%=%%%%!n[%%%%%[%%%&&%*[%#%%%%%%% % " | | ! !!===!*==!%&!*![[!*&=[!;[=!#%%% " %% %" | | %%%% %%% % !%!&!![[!!![= =|#%%%%%%%% % %% | | %=%%%% %%"%% !/&![!!*=**=!![!=#%% %%%%%% "% %%! | | !% % % % "[= ! ! =*=! * !==#!% %%% %%%"% %" % | | % " !*% % * # # [*#!=!! %%%%%%%%%%% | | " [ ; ##### #===*!%%%%%% %%% % % | | % *! = # #???## #!!/=*!!% %% %%% %%" | | %"! "" ; ###????## # =!!*!*=%%%%% %%% | | % ## # #"##""# ; #???????# # * !==!=%*%% %!|* | | ## #### # # #???????# # =[ *==% [ % % | | " #"####??## # #####???????? # " "! ==*[=![ % | | %"#####????######???????????? # % ! % % " | | % ##?????????????????????? # "% "" | | "" ##?????????????????????? # "" " | | """ ##?????????????????????? # " " % | | """ ##??????????????????????## "" " | | """"##???????????????????????# " | | """"##???????????????????????# "" " | | """"##???????????????????????# " %" | | ##???????????????????????# " % "" " | +----------------------------------------------------+ Best States ------------- Heat Dissipation 69 Energy Generation 49 Energy Capacity 530 Matter Stores 736 Matter Capacity 1050 Sight Range 23 Robot Scan Range 20 Terrain Scan Range 16 Terrain Scan Density 10 Jamming Range 14 Cloak Strength 3 Additional Mass Support 16 Armor Coverage 900 Core Shielding 90 Propulsion Shielding 33 Utility Shielding 90 Projectile Deflection 15 Melee Speed Boost 50 Phase Shifting 15 Evasion (%) 77 Targeting Accuracy 30 Melee Accuracy 16 Launcher Accuracy 40 Core Analysis 8 Armor Integrity Analysis 50 Recoil Reduction 4 Energy Filtering 50 Offensive Hacking 56 Defensive Hacking 28 Authchip Count 4 Item Schematics ----------------- Cld. VTOL Module | -5/Factory | Hacked Adv. Reaction Control System | -5/Factory | Hacked Assault Drone Bay | -5/Zhirov | Free Exp. Heat Sink | -5/Zhirov | Free Exp. Optical Array | -5/Zhirov | Free Imp. Arc Thrower | -5/Zhirov | Free Cmb. Linear Gravjet | -4/Factory | Hacked Imp. Quantum Reactor | -2/Testing | Hacked Exp. Thermal Shield | -2/Protoforge | Archive Thunder Hammer | -2/Protoforge | Archive Cld. Proton Cannon | -2/Protoforge | Archive Coolant Network | -2/Protoforge | Archive Exp. Core Analyzer | -2/Protoforge | Archive Enh. Biometal Leg | -2/Protoforge | Archive Hds. Centrium Heavy Treads | -2/Protoforge | Archive Prc. Matter Filter | -2/Protoforge | Archive Robot Schematics ------------------ G-50 Soldier | -6/Data Miner | Free B-60 Warrior | -6/Data Miner | Free A-15 Conveyor | -6/Data Miner | Free A-27 Freighter | -2/Protoforge | Archive Fabricated ------------ Cld. VTOL Module | x1 | -5/Factory | Authchip Repaired ---------- Imp. Treads | 38% | -9/Materials Imp. Treads | 69% | -9/Materials Lgt. Treads | 9% | -8/Materials Lrn. Sensor Array | 18% | -2/Research Studied --------- Imp. Light Cannon | -9/Materials | Hacked Nuclear Pulse Array | -4/Factory | Hacked Field Propulsion Array | -4/Factory | Hacked Hvy. Phase Cannon | -3/Research | Hacked Katana | -3/Research | Hacked Cmb. Linear Gravjet | -3/Quarantine | Hacked Impulse Thruster | -3/Quarantine | Hacked Linear Accelerator | -3/Quarantine | Hacked Alien Tech Used ----------------- Integrated Dissipator Transdimensional Reconstructor High-powered Transdimensional Reconstructor Achievements -------------- Civilization 2243 Dominance Asserted Express Service Fancy Inventory Fine I'll Do It Myself Hackathon Heavy Suspicion Hulk Smash I Laugh At Your Crits Inventory(Loot) Item+ Junior Dev Link The Feds Live, Flee, And Rebuild Not Today, Chutes Official Business Physics Protects Suspicious That Tickles UFD MVP We Are One You May Approach The Wall Challenges ------------ None Game ------ Seed DefenseFlakRailcannon Manual? 0 Play Time 04:25:19 Cumulative 225.6 hours Start 2025.10.25 @ 13:49:27 End 2025.10.25 @ 21:24:46 Sessions 17 Manual Loads 0 Difficulty Rogue Special Mode None Game No. 127 Rogue 127 Adventurer 0 Explorer 0 Win Type - Total 26 Types 11/1/10/1/0/1/1/1/0/0 Lore% 79 Gallery% 69 Achievement% 49 Wizard Run 0 Options --------- Layout 1 ASCII 0 Keyboard 0 Movement Arrows Keybinds 0 Fullscreen 2 Font 24/Tamsyn Map View 50x35 Zoom Use 0% Tactical HUD 1 Map Filters NONE Filters NONE Steam 1 RUN: c0d8feb7-3f8f-4158-914b-23dd276facdd